Workbook

Sheet Inicio_Keynes
A25: Descargue la versión Kindle
L33: Miguel Cervantes Jiménez

Sheet Consumo (hidden)
B1: MODELO KEYNESIANO
B2: FUNCIONES CONSUMO Y AHORRO
B6: FUNCIÓN CONSUMO | C6: CASO 1 | D6: CASO 2
B7: Consumo | C7: =SK_Oculto!B27 -> 154.00 | D7: 60.00
B8: b0 | C8: 40.00 | D8: =C8 -> 40.00
B9: b1 | C9: 0.60 | D9: =C9 -> 0.60
B10: Y | C10: 200.00 | D10: =C10 -> 200.00
B11: T0 | C11: 10.00 | D11: =C11 -> 10.00
C12: Inserte los datos correspondientes
B14: FUNCIÓN AHORRO | C14: CASO 1 | D14: CASO 2
B15: Ahorro | C15: =SK_Oculto!Q27 -> 36.00 | D15: 130.00
B16: -b0 | C16: =SK_Oculto!Q28 -> -40.00 | D16: =SK_Oculto!R28 -> -40.00
B17: 1-b1 | C17: =SK_Oculto!Q29 -> 0.40 | D17: =SK_Oculto!R29 -> 0.40
B18: Y | C18: =SK_Oculto!Q30 -> 200.00 | D18: 73.60
B19: T0 | C19: =SK_Oculto!Q31 -> 10.00 | D19: =SK_Oculto!R31 -> 10.00
B25: Títulos
B26: Resultados
B27: Insertar datos

Sheet Ahorro (hidden)
B1: KEYNES
A2: FUNCIÓN DE AHORRO
B5: FUNCIÓN AHORRO
B6: Ahorro | C6: =SK_Oculto!Q27 -> 36.00
B7: -b0 | C7: -10.00
B8: 1-b1 | C8: 0.20
B9: Y | C9: 200.00
B10: t0 | C10: 0.00
C11: Inserte los datos correspondientes
B24: Títulos
B25: Resultados
B26: Insertar Datos

Sheet Inversión (hidden)
B1: MODELO KEYNESIANO
B2: FUNCIÓN INVERSIÓN
B5: FUNCIÓN INVERSIÓN | C5: CASO 1 | D5: CASO 2
B6: Inversión | C6: =SK_Oculto!AF27 -> 220.00 | D6: =SK_Oculto!AG27 -> 220.00
B7: i0 | C7: 40.00 | D7: =C7 -> 40.00
B8: i1 | C8: -300.00 | D8: =C8 -> -300.00
B9: r | C9: 40% | D9: =C9 -> 40%
B10: r trampa liquidez | C10: 15% | D10: =C10 -> 15%
B11: i2 | C11: 50.00 | D11: =C11 -> 50.00
B12: Emk0 | C12: 600% | D12: =C12 -> 600%
C13: Inserte los datos correspondientes
B24: Títulos
B25: Resultados
B26: Insertar datos

Sheet Dinero (hidden)
B1: MODELO KEYNESIANO
A2: MERCADO DE DINERO
B4: FUNCIÓN DEMANDA DE DINERO
C5: CASO 1 | D5: CASO 2
B6: Md | C6: =SK_Oculto!AU27 -> 500.0 | D6: =SK_Oculto!AV27 -> 500.0
B7: m0 | C7: 30.0 | D7: =C7 -> 30.0
B8: m1 | C8: 0.5 | D8: =C8 -> 0.5
B9: Y | C9: 1,500.0 | D9: =C9 -> 1,500.0
B10: m2 | C10: -2,000.0 | D10: =C10 -> -2,000.0
B11: r Trampa de Liquidez | C11: 10% | D11: =SK_Oculto!AV32 -> 10%
C12: Inserte los datos correspondientes
B13: FUNCIÓN OFERTA DE DINERO
B14: Ms | C14: 500.0 | D14: =C14 -> 500.0
C15: Inserte los datos correspondientes
B17: Tasa de Interés | C17: =SK_Oculto!AU41 -> 14.00% | D17: =SK_Oculto!AV41 -> 14.00%
B24: Títulos
B25: Resultados
B26: Insertar datos
B27: Equilibrio

Sheet Importaciones (hidden)
B1: MODELO KEYNESIANO
B2: FUNCIÓN IMPORTACIONES
B4: FUNCIÓN IMPORTACIONES
C5: CASO 1 | D5: CASO 2
B6: Importaciones | C6: =SK_Oculto!BG27 -> 210.00 | D6: =SK_Oculto!BH27 -> 210.00
B7: q0 | C7: 60.00 | D7: =C7 -> 60.00
B8: q1 | C8: 0.30 | D8: =C8 -> 0.30
B9: Y | C9: 500.00 | D9: =C9 -> 500.00
C10: Inserte los datos correspondientes
B24: Títulos
B25: Resultados
B26: Insertar datos

Sheet Demanda_Agregada (hidden)
A1: MODELO KEYNESIANO
A2: Demanda efectiva
B4: Y | D4: =SK_Oculto!BV26 -> 1,300.00
B6: FUNCIÓN CONSUMO
B7: b0 | D7: 90.00
B8: b1 | D8: 0.80
B9: T0 | D9: 100.00
B10: C | D10: =SK_Oculto!BV32 -> 1,050.00
B12: INVERSIÓN
B13: I0 | D13: 150.00
B15: GASTO DE GOBIERNO
B16: G0 | D16: 100.00
B18: EXPORTACIONES
B19: X0 | D19: 200.00
B21: FUNCIÓN IMPORTACIONES
B22: q0 | D22: 70.00
B23: q1 | D23: 0.10
B24: Q | D24: =SK_Oculto!BV45 -> 200.00
B25: Inserte los datos correspondientes
B26: Demanda Efectiva | D26: =SK_Oculto!BY37 -> 1,300.00
B27: Consumo | D27: =SK_Oculto!BY28 -> 1,050.00
B28: Inversión | D28: =SK_Oculto!BY29 -> 150.00
B29: Ahorro | D29: =SK_Oculto!BY33 -> 150.00
B30: Gasto de Gobierno | D30: =SK_Oculto!BY30 -> 100.00
B31: Impuestos | D31: =SK_Oculto!BV31 -> 100.00
B32: Exportaciones | D32: =SK_Oculto!BY31 -> 200.00
B33: Importaciones | D33: =SK_Oculto!BY32 -> 200.00
B34: I+G+X | D34: =SK_Oculto!BY34 -> 450.00
B35: S+T+Q | D35: =SK_Oculto!BY35 -> 450.00
B39: Títulos
B40: Resultados
B41: Insertar datos
B42: Valores de equilibrio

Sheet Sistema (hidden)
A1: EL MODELO KEYNESIANO
B3: INGRESO
B4: Y | C4: =SK_Oculto!DA5 -> 243.33
B6: FUNCIÓN CONSUMO | F6: IMPUESTOS
B7: C | C7: b0 | D7: b1 | E7: Y | F7: T0
B8: =SK_Oculto!CZ9 -> 215.0 | C8: 70.00 | D8: 0.75 | E8: =SK_Oculto!DC9 -> 243.33 | F8: 50.00
B9: Inserte los datos correspondientes
B10: FUNCIÓN AHORRO
B11: S | C11: -b0 | D11: 1-b1 | E11: Y | F11: T0
B12: =SK_Oculto!CZ13 -> (21.7) | C12: =SK_Oculto!DA13 -> -70.00 | D12: =SK_Oculto!DB13 -> 0.25 | E12: =SK_Oculto!DC13 -> 243.33 | F12: =F8 -> 50.00
B14: INVERSIÓN
B15: I | C15: I0
B16: =SK_Oculto!CZ17 -> 100.0 | C16: 100.00
B17: Inserte los datos correspondientes
B18: GASTO DEL GOBIERNO
B19: G | C19: G0
B20: 200.0 | C20: 200.00
B21: Inserte los datos correspondientes
B22: SALDO PÚBLICO
B23: T-G
B24: =F12-B20 -> -150
B26: EXPORTACIONES
B27: X | C27: X0
B28: =SK_Oculto!CZ25 -> 50.0 | C28: 50.00
B29: Inserte los datos correspondientes
B30: FUNCIÓN IMPORTACIONES
B31: Q | C31: q0 | D31: q1 | E31: Y
B32: =SK_Oculto!CZ29 -> 321.7 | C32: 200.00 | D32: 0.50 | E32: =SK_Oculto!DC29 -> 243.33
B33: Inserte los datos correspondientes
B34: SALDO DE LA BALANZA COMERCIAL
B35: SBC
B36: =SK_Oculto!CZ32 -> (271.7)
B38: Títulos
B39: Resultados
B40: Insertar datos
B41: Valores de equilibrio

Sheet Sistema_Ampliado (hidden)
A2: EFECTOS DE POLÍTICA ECONÓMICA EN EL MODELO KEYNESIANO
B4: INGRESO | P4: CHOQUES DE POLÍTICA ECONÓMICA
B5: Y | C5: =SK_Oculto!DI5 -> 1,516.67 | I5: CONDICIONES DE EQUILIBRIO | P5: G0 | Q5: T0 | R5: I0
P6: =SK_Oculto!DW14 -> 100.00 | Q6: =SK_Oculto!DX14 -> 100.00 | R6: =SK_Oculto!DY14 -> 235.00
B7: FUNCIÓN CONSUMO | P7: 0% | Q7: 0% | R7: 0%
B8: C | C8: b0 | D8: b1 | E8: Y | F8: T0 | J8: MULTIPLICADOR
B9: =SK_Oculto!DH9 -> 1,193.3 | C9: 60.00 | D9: 0.80 | E9: =SK_Oculto!DK9 -> 1,516.67 | F9: =SK_Oculto!DL9 -> 100.00 | J9: Multiplicador | P9: X0 | Q9: q0 | R9: q1
C10: Inserte los datos correspondientes | J10: =SK_Oculto!DK37 -> 3.3 | P10: =SK_Oculto!DX18 -> 150.00 | Q10: =SK_Oculto!DY18 -> 10.00 | R10: =SK_Oculto!DZ18 -> 0.10
B11: FUNCIÓN AHORRO | P11: 0% | Q11: 0% | R11: 0%
B12: S | C12: -b0 | D12: 1-b1 | E12: Y | F12: T0 | J12: INGRESO = DEM. AGREG.
B13: =SK_Oculto!DH13 -> 223.3 | C13: =SK_Oculto!DI13 -> -60.00 | D13: 0.20 | E13: =SK_Oculto!DK13 -> 1,516.67 | F13: =F9 -> 100.00 | J13: Y | K13: DA | P13: Muestra los efectos de política económica
J14: =SK_Oculto!DH40 -> 1,516.7 | K14: =SK_Oculto!DI40 -> 1,516.7 | P14: FUNCIÓN ORIGINAL | Q14: CHOQUE | R14: VARIACIÓN ABS | S14: VARIACIÓN REL
B15: INVERSIÓN
B16: I | C16: I0 | J16: INYECCIONES = FILTRACIONES | O16: Y | P16: =SK_Oculto!DX26 -> 1,516.67 | Q16: =SK_Oculto!DY26 -> 1,516.67 | R16: =SK_Oculto!DZ26 -> 0 | S16: =SK_Oculto!EA26 -> 0.0%
B17: =SK_Oculto!DH17 -> 235.0 | C17: 235.00 | J17: I+G+X | K17: S+T+Q | O17: C | P17: =SK_Oculto!DX27 -> 1,193.33 | Q17: =SK_Oculto!DY27 -> 1,193.33 | R17: =SK_Oculto!DZ27 -> 0 | S17: =SK_Oculto!EA27 -> 0.0%
J18: =SK_Oculto!DH42 -> 485.0 | K18: =SK_Oculto!DI42 -> 485.0 | O18: S | P18: =SK_Oculto!DX28 -> 223.33 | Q18: =SK_Oculto!DY28 -> 223.33 | R18: =SK_Oculto!DZ28 -> 0 | S18: =SK_Oculto!EA28 -> 0.0%
B19: IMPUESTOS | O19: I | P19: =SK_Oculto!DX29 -> 235.00 | Q19: =SK_Oculto!DY29 -> 235.00 | R19: =SK_Oculto!DZ29 -> 0 | S19: =SK_Oculto!EA29 -> 0.0%
B20: T | C20: T0 | O20: G | P20: =SK_Oculto!DX31 -> 100.00 | Q20: =SK_Oculto!DY31 -> 100.00 | R20: =SK_Oculto!DZ31 -> 0 | S20: =SK_Oculto!EA31 -> 0.0%
B21: =C21 -> 100.0 | C21: 100.00 | O21: SF | P21: =SK_Oculto!DX32 -> 0 | Q21: =SK_Oculto!DY32 -> 0 | R21: =SK_Oculto!DZ32 -> 0 | S21: =SK_Oculto!EA32 -> 0.0%
O22: X | P22: =SK_Oculto!DX33 -> 150.00 | Q22: =SK_Oculto!DY33 -> 150.00 | R22: =SK_Oculto!DZ33 -> 0 | S22: =SK_Oculto!EA33 -> 0.0%
B23: GASTO DE GOBIERNO | O23: M | P23: =SK_Oculto!DX34 -> 161.67 | Q23: =SK_Oculto!DY34 -> 161.67 | R23: =SK_Oculto!DZ34 -> 0 | S23: =SK_Oculto!EA34 -> 0.0%
B24: G | C24: G0 | O24: SBC | P24: =SK_Oculto!DX35 -> -11.67 | Q24: =SK_Oculto!DY35 -> -11.67 | R24: =SK_Oculto!DZ35 -> 0 | S24: =SK_Oculto!EA35 -> 0.0%
B25: =SK_Oculto!DH25 -> 100.0 | C25: 100.00 | O25: Mult. | P25: =SK_Oculto!DX36 -> 3.33 | Q25: =SK_Oculto!DY36 -> 3.33 | R25: =SK_Oculto!DZ36 -> 0 | S25: =SK_Oculto!EA36 -> 0.0%
B27: SALDO FISCAL
B28: T-G
B29: =G22-C34 -> 0
B31: EXPORTACIONES
B32: X | C32: X0
B33: =SK_Oculto!DH29 -> 150.0 | C33: 150.00
B35: FUNCIÓN IMPORTACIONES
B36: Q | C36: q0 | D36: q1 | E36: Y
B37: =SK_Oculto!DH33 -> 161.7 | C37: 10.00 | D37: 0.10 | E37: =SK_Oculto!DK33 -> 1,516.67
B39: SALDO BALANZA COMERCIAL
B40: SBC
B41: =SK_Oculto!DH37 -> (11.7)
B50: Títulos
B51: Resultados
B52: Insertar datos
B53: Valores de equilibrio
B54: Política económica

Sheet Sistema_Gráficas (hidden)
A2: EFECTOS DE POLÍTICA ECONÓMICA | N2: G0 | O2: T0 | P2: I0
A3: MODELO KEYNESIANO | N3: =SK_Oculto!Q69 -> 100.00 | O3: =SK_Oculto!R69 -> 100.00 | P3: =SK_Oculto!S69 -> 100.00
N4: 0.00% | O4: 0.00% | P4: 0.00%
A5: Y | B5: =SK_Oculto!B53 -> 583.33 | N5: FUNCIÓN ORIGINAL | O5: CHOQUE | P5: VARIACIÓN ABS | Q5: VARIACIÓN REL
A6: CONSUMO
A7: C | B7: b0 | C7: b1 | D7: Y | E7: T0 | M7: Y | N7: =SK_Oculto!Q74 -> 583.33 | O7: =SK_Oculto!R74 -> 583.3 | P7: =SK_Oculto!S74 -> 0 | Q7: =SK_Oculto!T74 -> 0.0%
A8: =SK_Oculto!A57 -> 446.7 | B8: 60.00 | C8: 0.80 | D8: =SK_Oculto!D57 -> 583.33 | E8: =SK_Oculto!E57 -> 100.00 | M8: C | N8: =SK_Oculto!Q75 -> 446.67 | O8: =SK_Oculto!R75 -> 446.7 | P8: =SK_Oculto!S75 -> 0 | Q8: =SK_Oculto!T75 -> 0.0%
A9: AHORRO | B9: Inserte los datos correspondientes | M9: S | N9: =SK_Oculto!Q76 -> 36.67 | O9: =SK_Oculto!R76 -> 36.7 | P9: =SK_Oculto!S76 -> 0 | Q9: =SK_Oculto!T76 -> 0.0%
A10: S | B10: -b0 | C10: 1-b1 | D10: Y | E10: T0 | M10: I | N10: =SK_Oculto!Q77 -> 100.00 | O10: =SK_Oculto!R77 -> 100.0 | P10: =SK_Oculto!S77 -> 0 | Q10: =SK_Oculto!T77 -> 0.0%
A11: =SK_Oculto!A61 -> 36.7 | B11: -60.0 | C11: 0.2 | D11: =SK_Oculto!D61 -> 583.33 | E11: =SK_Oculto!E61 -> 100.00 | M11: G | N11: =SK_Oculto!Q81 -> 100.00 | O11: =SK_Oculto!R81 -> 100.0 | P11: =SK_Oculto!S81 -> 0 | Q11: =SK_Oculto!T81 -> 0.0%
A12: INVERSIÓN | M12: X | N12: =SK_Oculto!Q82 -> 200.00 | O12: =SK_Oculto!R82 -> 200.0 | P12: =SK_Oculto!S82 -> 0 | Q12: =SK_Oculto!T82 -> 0.0%
A13: I | B13: I0 | M13: M | N13: =SK_Oculto!Q83 -> 263.33 | O13: =SK_Oculto!R83 -> 263.3 | P13: =SK_Oculto!S83 -> 0 | Q13: =SK_Oculto!T83 -> 0.0%
A14: =SK_Oculto!A65 -> 100.0 | B14: 100.00 | M14: SBC | N14: =SK_Oculto!Q84 -> -63.33 | O14: =SK_Oculto!R84 -> -63.3 | P14: =SK_Oculto!S84 -> 0 | Q14: =SK_Oculto!T84 -> 0.0%
A15: GASTO DEL GOBIERNO | D15: IMPUESTOS
A16: G | B16: G0 | D16: T | E16: T0
A17: =SK_Oculto!A69 -> 100.0 | B17: 100.00 | D17: =SK_Oculto!D69 -> 100.0 | E17: 100.00
A18: EXPORTACIONES
A19: X | B19: X0 | D19: T-G | E19: SBC
A20: =SK_Oculto!D77 -> 200.0 | B20: 200.00 | D20: =D17-A17 -> 0 | E20: =SK_Oculto!F81 -> -63.3
A21: IMPORTACIONES
A22: Q | B22: q0 | C22: q1 | D22: Y
A23: =SK_Oculto!A81 -> 263.3 | B23: 30.00 | C23: 0.40 | D23: =SK_Oculto!D81 -> 583.33
A26: Títulos
A27: Resultados
A28: Insertar Datos
A29: Equilibrio
A30: Política económica

Sheet SK_Oculto (hidden)
A1: CONSUMO | P1: AHORRO | AE1: INVERSIÒN | AT1: MERCADO DE DINERO | BF1: IMPORTACIONES | BU1: SISTEMA COMPLETO | CZ1: SISTEMA | DH1: SISTEMA CON CHOQUES
A3: Unidades | B3: Ponderador | C3: Ingreso | D3: Consumo | E3: plin1 | G3: xlin1 | I3: Ingreso | J3: Consumo 2 | K3: plin2 | M3: xlin2 | P3: Unidades | Q3: Ponderador | R3: Ingreso | S3: Ahorro | T3: plin | V3: xlin | X3: Ahorro 2 | Y3: plin | AA3: xlin | AE3: Ponderador | AF3: Inversión | AG3: Interés | AH3: plin | AJ3: xlin | AL3: Inversión 2 | AM3: Interés 2 | AN3: plin | AP3: xlin | AT3: Ponderador | AU3: Md | AV3: Interés | AW3: Ms | AX3: Interés | AY3: plin | BA3: Md2 | BB3: Interés | BC3: plin | BF3: Unidades | BG3: Ponderador | BH3: Ingreso | BI3: Importaciones | BJ3: plin | BL3: xlin | BN3: Ing2 | BO3: Consumo 2 | BP3: plin | BR3: xlin | BU3: Unidades | BV3: Ponderador | BW3: Ingreso | BX3: Consumo | BY3: plin | CA3: xlin | CC3: Inversión | CD3: I+G+X | CE3: S+T+Q | CF3: S | CG3: Q | CI3: G | CJ3: Exportaciones | CK3: Importaciones | CL3: plin | CN3: xlin | CP3: C+I+G+X-M | CQ3: plin | CS3: xlin | CU3: DA | CV3: plin | CZ3: SISTEMA ORIGINAL | DH3: SISTEMA ORIGINAL | DO3: SISTEMA CON CHOQUES
A4: 0 | B4: 0 | C4: =$B$30*A4 -> 0 | D4: =B$28+(B$29*(C4-B$31)) -> 34 | E4: =B4*$B$30 -> 0 | F4: =$B$27 -> 154 | G4: =$B$30 -> 200 | H4: =B4*$B$27 -> 0 | I4: =$C$30*A4 -> 0 | J4: =C$28+(C$29*(I4-C$31)) -> 34 | K4: =B4*$C$30 -> 0 | L4: =$C$27 -> 154 | M4: =$C$30 -> 200 | N4: =B4*$C$27 -> 0 | P4: 0 | Q4: 0 | R4: =MAX(C4,I4) -> 0 | S4: =$Q$28+($Q$29*(R4-$Q$31)) -> (44) | T4: =Q4*$Q$30 -> 0 | U4: =$Q$27 -> 36 | V4: =$Q$30 -> 200 | W4: =Q4*$Q$27 -> 0 | X4: =$R$28+($R$29*(R4-$R$31)) -> (44) | Y4: =$Q4*$R$30 -> 0 | Z4: =$R$27 -> 36 | AA4: =$R$30 -> 200 | AB4: =$Q4*$R$27 -> 0 | AE4: 0 | AF4: =AE4*$AF$26 -> 0.00 | AG4: =IF(((AF4-$AF$28-($AF$32*$AF$33))/$AF$29)>$AF$31,((AF4-$AF$28-($AF$32*$AF$33))/$AF$29),$AF$31) -> 1.13 | AH4: =AE4*$AF$27 -> 0.00 | AI4: =$AF$30 -> 0.40 | AJ4: =$AF$27 -> 220.00 | AK4: =$AF$30*AE4 -> 0.00 | AL4: =AE4*$AF$26 -> 0.00 | AM4: =IF(((AL4-$AG$28-($AG$32*$AG$33))/$AG$29)>$AG$31,((AL4-$AG$28-($AG$32*$AG$33))/$AG$29),$AG$31) -> 1.13 | AN4: =AE4*$AG$27 -> 0.00 | AO4: =$AG$30 -> 0.40 | AP4: =$AG$27 -> 220.00 | AQ4: =AE4*$AG$30 -> 0.00 | AT4: 0 | AU4: =AT4*$AU$26 -> 0.00 | AV4: =IF(((AU4-$AU$28-($AU$29*$AU$30))/$AU$31)>$AU$32,((AU4-$AU$28-($AU$29*$AU$30))/$AU$31),$AU$32) -> 0.39 | AW4: =$AU$35 -> 500.00 | AX4: =MAX($AV$4:$AV$24)*AT4 -> 0.00 | AY4: =$AU$35*AT4 -> 0.00 | AZ4: =$AU$41 -> 0.14 | BA4: =AT4*$AU$26 -> 0.00 | BB4: =IF(((BA4-$AV$28-($AV$29*$AV$30))/$AV$31)>$AV$32,((BA4-$AV$28-($AV$29*$AV$30))/$AV$31),$AV$32) -> 0.39 | BC4: =$AV$35*AT4 -> 0.00 | BD4: =$AV$41 -> 0.14 | BF4: 0 | BG4: 0 | BH4: =$BG$30*BF4 -> 0 | BI4: =BG$28+(BG$29*BH4) -> 60 | BJ4: =BG4*$BG$30 -> 0 | BK4: =BG27 -> 210 | BL4: =$BG$30 -> 500 | BM4: =BG4*$BG$27 -> 0 | BN4: =BF4*$BH$30 -> 0 | BO4: =BH$28+(BH$29*BN4) -> 60 | BP4: =BG4*$BH$30 -> 0 | BQ4: =$BH$27 -> 210 | BR4: =$BH$30 -> 500 | BS4: =BG4*$BH$27 -> 0 | BU4: 0 | BV4: 0 | BW4: =MAX($BV$26,$BY$37)*BU4 -> 0 | BX4: =$BV$29+($BV$30*(BW4-$BV$31)) -> 10 | BY4: =BV4*$BV$26 -> 0 | BZ4: =$BY$28 -> 1,050 | CA4: =$BV$26 -> 1,300 | CB4: =BV4*$BY$28 -> 0 | CC4: =$BV$34 -> 150 | CD4: =$BY$29+$BY$30+$BY$31 -> 450 | CE4: =(-$BV$29+((1-$BV$30)*(BW4-$BV$31)))+$BV$31+($BV$43+$BV$44*BW4) -> 60 | CF4: =(-$BV$29+((1-$BV$30)*(BW4-$BV$31))) -> (110) | CG4: =$BV$31+($BV$43+$BV$44*BW4) -> 170 | CI4: =$BV$37 -> 100 | CJ4: =$BY$31 -> 200 | CK4: =$BV$43+($BV$44*BW4) -> 70.00 | CL4: =BV4*$BV$26 -> 0 | CM4: =$BY$32 -> 200.00 | CN4: =$BV$26 -> 1,300.00 | CO4: =BV4*$BY$32 -> 0 | CP4: =($BV$29+($BV$30*(BW4-$BV$31)))+$BY$29+$BY$30+$BY$31-($BV$43+($BV$44*BW4)) -> 390.00 | CQ4: =BV4*$BV$26 -> 0 | CR4: =$BY$35 -> 450.00 | CS4: =$BV$26 -> 1,300.00 | CT4: =BV4*$BY$35 -> 0 | CU4: =BW4 -> 0 | CV4: =BV4*$BY$37 -> 0 | CW4: =BY37 -> 1,300.00
A5: 0.1 | B5: 0.05 | C5: 20 | D5: =$B$28+($B$29*(C5-$B$31)) -> 46 | E5: =B5*$B$30 -> 10 | F5: 154 | G5: 200 | H5: 8 | I5: =$C$30*A5 -> 20 | J5: =C$28+(C$29*(I5-C$31)) -> 46 | K5: =B5*$C$30 -> 10 | L5: 154 | M5: =$C$30 -> 200 | N5: 8 | P5: 0.1 | Q5: 0.05 | R5: =MAX(C5,I5) -> 20 | S5: (36) | T5: 10 | U5: 36 | V5: =$Q$30 -> 200 | W5: 2 | X5: =$R$28+($R$29*(R5-$R$31)) -> (36) | Y5: =$Q5*$R$30 -> 10 | Z5: =$R$27 -> 36 | AA5: =$R$30 -> 200 | AB5: =$Q5*$R$27 -> 2 | AE5: 0.05 | AF5: =AE5*$AF$26 -> 17.00 | AG5: =IF(((AF5-$AF$28-($AF$32*$AF$33))/$AF$29)>$AF$31,((AF5-$AF$28-($AF$32*$AF$33))/$AF$29),$AF$31) -> 1.08 | AH5: 11.00 | AI5: =$AF$30 -> 0.40 | AJ5: 220.00 | AK5: =$AF$30*AE5 -> 0.02 | AL5: =AE5*$AF$26 -> 17.00 | AM5: =IF(((AL5-$AG$28-($AG$32*$AG$33))/$AG$29)>$AG$31,((AL5-$AG$28-($AG$32*$AG$33))/$AG$29),$AG$31) -> 1.08 | AN5: 11.00 | AO5: =$AG$30 -> 0.40 | AP5: 220.00 | AQ5: =AE5*$AG$30 -> 0.02 | AT5: 0.05 | AU5: =AT5*$AU$26 -> 39.00 | AV5: 0.37 | AW5: 500.00 | AX5: 0.02 | AY5: 25.00 | AZ5: =$AU$41 -> 0.14 | BA5: =AT5*$AU$26 -> 39.00 | BB5: 0.37 | BC5: =$AV$35*AT5 -> 25.00 | BD5: =$AV$41 -> 0.14 | BF5: 0.1 | BG5: 0.05 | BH5: =$BG$30*BF5 -> 50 | BI5: =BG$28+(BG$29*BH5) -> 75 | BJ5: 25 | BK5: =$BG$27 -> 210 | BL5: 500 | BM5: =BG5*$BG$27 -> 11 | BN5: 50 | BO5: 75 | BP5: 25 | BQ5: 210 | BR5: =$BH$30 -> 500 | BS5: 11 | BU5: 0.1 | BV5: 0.05 | BW5: 130 | BX5: =$BV$29+($BV$30*(BW5-$BV$31)) -> 114 | BY5: =BV5*$BV$26 -> 65 | BZ5: 1,050 | CA5: =$BV$26 -> 1,300 | CB5: 53 | CC5: 150 | CD5: =$BY$29+$BY$30+$BY$31 -> 450 | CE5: =(-$BV$29+((1-$BV$30)*(BW5-$BV$31)))+$BV$31+($BV$43+$BV$44*BW5) -> 99 | CF5: =(-$BV$29+((1-$BV$30)*(BW5-$BV$31))) -> (84) | CG5: =$BV$31+($BV$43+$BV$44*BW5) -> 183 | CI5: =$BV$37 -> 100 | CJ5: 200 | CK5: 83.00 | CL5: 65.00 | CM5: 200.00 | CN5: =$BV$26 -> 1,300.00 | CO5: 10.00 | CP5: 481.00 | CQ5: 65.00 | CR5: 450.00 | CS5: 1,300.00 | CT5: 22.50 | CU5: =BW5 -> 130 | CV5: 65.00 | CW5: =$BY$37 -> 1,300.00 | CZ5: Y | DA5: =(1/(1-DB9+DB29))*(DA9-(DB9*DD9)+CZ17+CZ21+CZ25-DA29) -> 243.33 | DH5: Y | DI5: =(1/(1-DJ9+DJ33))*(DI9-(DJ9*DL9)+DH17+DH25+DH29-DI33) -> 1,516.67 | DO5: Y | DP5: =(1/(1-DQ9+DQ33))*(DP9-(DQ9*DS9)+DO17+DO25+DO29-DP33) -> 1,516.67
A6: 0.2 | B6: 0.1 | C6: 40 | D6: 58 | E6: 20 | F6: 154 | G6: 200 | H6: 15 | I6: 40 | J6: 58 | K6: 20 | L6: 154 | M6: 200 | N6: 15 | P6: 0.2 | Q6: 0.1 | R6: 40 | S6: (28) | T6: 20 | U6: 36 | V6: 200 | W6: 4 | X6: (28) | Y6: 20 | Z6: 36 | AA6: 200 | AB6: 4 | AE6: 0.1 | AF6: 34.00 | AG6: 1.02 | AH6: 22.00 | AI6: 0.40 | AJ6: 220.00 | AK6: 0.04 | AL6: 34.00 | AM6: 1.02 | AN6: 22.00 | AO6: 0.40 | AP6: 220.00 | AQ6: 0.04 | AT6: 0.1 | AU6: 78.00 | AV6: 0.35 | AW6: 500.00 | AX6: 0.04 | AY6: 50.00 | AZ6: 0.14 | BA6: 78.00 | BB6: 0.35 | BC6: 50.00 | BD6: 0.14 | BF6: 0.2 | BG6: 0.1 | BH6: 100 | BI6: 90 | BJ6: 50 | BK6: 210 | BL6: 500 | BM6: 21 | BN6: 100 | BO6: 90 | BP6: 50 | BQ6: 210 | BR6: 500 | BS6: 21 | BU6: 0.2 | BV6: 0.1 | BW6: 260 | BX6: 218 | BY6: 130 | BZ6: 1,050 | CA6: 1,300 | CB6: 105 | CC6: 150 | CD6: 450 | CE6: 138 | CF6: (58) | CG6: 196 | CI6: 100 | CJ6: 200 | CK6: 96.00 | CL6: 130.00 | CM6: 200.00 | CN6: 1,300.00 | CO6: 20.00 | CP6: 572.00 | CQ6: 130.00 | CR6: 450.00 | CS6: 1,300.00 | CT6: 45.00 | CU6: 260 | CV6: 130.00 | CW6: 1,300.00
A7: 0.3 | B7: 0.15 | C7: 60 | D7: 70 | E7: 30 | F7: 154 | G7: 200 | H7: 23 | I7: 60 | J7: 70 | K7: 30 | L7: 154 | M7: 200 | N7: 23 | P7: 0.3 | Q7: 0.15 | R7: 60 | S7: (20) | T7: 30 | U7: 36 | V7: 200 | W7: 5 | X7: (20) | Y7: 30 | Z7: 36 | AA7: 200 | AB7: 5 | AE7: 0.15 | AF7: =AE7*$AF$26 -> 51.00 | AG7: 0.96 | AH7: 33.00 | AI7: 0.40 | AJ7: 220.00 | AK7: 0.06 | AL7: 51.00 | AM7: 0.96 | AN7: 33.00 | AO7: 0.40 | AP7: 220.00 | AQ7: 0.06 | AT7: 0.15 | AU7: 117.00 | AV7: 0.33 | AW7: 500.00 | AX7: 0.06 | AY7: 75.00 | AZ7: 0.14 | BA7: 117.00 | BB7: 0.33 | BC7: 75.00 | BD7: 0.14 | BF7: 0.3 | BG7: 0.15 | BH7: 150 | BI7: 105 | BJ7: 75 | BK7: 210 | BL7: 500 | BM7: 32 | BN7: 150 | BO7: 105 | BP7: 75 | BQ7: 210 | BR7: 500 | BS7: 32 | BU7: 0.3 | BV7: 0.15 | BW7: 390 | BX7: 322 | BY7: 195 | BZ7: 1,050 | CA7: 1,300 | CB7: 158 | CC7: 150 | CD7: 450 | CE7: 177 | CF7: (32) | CG7: 209 | CI7: 100 | CJ7: 200 | CK7: 109.00 | CL7: 195.00 | CM7: 200.00 | CN7: 1,300.00 | CO7: 30.00 | CP7: 663.00 | CQ7: 195.00 | CR7: 450.00 | CS7: 1,300.00 | CT7: 67.50 | CU7: 390 | CV7: 195.00 | CW7: 1,300.00 | CZ7: CONSUMO | DD7: IMPUESTOS | DH7: CONSUMO | DO7: CONSUMO
A8: 0.4 | B8: 0.2 | C8: 80 | D8: 82 | E8: 40 | F8: 154 | G8: 200 | H8: 31 | I8: 80 | J8: 82 | K8: 40 | L8: 154 | M8: 200 | N8: 31 | P8: 0.4 | Q8: 0.2 | R8: 80 | S8: (12) | T8: 40 | U8: 36 | V8: 200 | W8: 7 | X8: (12) | Y8: 40 | Z8: 36 | AA8: 200 | AB8: 7 | AE8: 0.2 | AF8: 68.00 | AG8: 0.91 | AH8: 44.00 | AI8: 0.40 | AJ8: 220.00 | AK8: 0.08 | AL8: 68.00 | AM8: 0.91 | AN8: 44.00 | AO8: 0.40 | AP8: 220.00 | AQ8: 0.08 | AT8: 0.2 | AU8: 156.00 | AV8: 0.31 | AW8: 500.00 | AX8: 0.08 | AY8: 100.00 | AZ8: 0.14 | BA8: 156.00 | BB8: 0.31 | BC8: 100.00 | BD8: 0.14 | BF8: 0.4 | BG8: 0.2 | BH8: 200 | BI8: 120 | BJ8: 100 | BK8: 210 | BL8: 500 | BM8: 42 | BN8: 200 | BO8: 120 | BP8: 100 | BQ8: 210 | BR8: 500 | BS8: 42 | BU8: 0.4 | BV8: 0.2 | BW8: 520 | BX8: 426 | BY8: 260 | BZ8: 1,050 | CA8: 1,300 | CB8: 210 | CC8: 150 | CD8: 450 | CE8: 216 | CF8: (6) | CG8: 222 | CI8: 100 | CJ8: 200 | CK8: 122.00 | CL8: 260.00 | CM8: 200.00 | CN8: 1,300.00 | CO8: 40.00 | CP8: 754.00 | CQ8: 260.00 | CR8: 450.00 | CS8: 1,300.00 | CT8: 90.00 | CU8: 520 | CV8: 260.00 | CW8: 1,300.00 | CZ8: C | DA8: b0 | DB8: b1 | DC8: Y | DD8: T | DE8: T0 | DH8: C | DI8: b0 | DJ8: b1 | DK8: Y | DL8: T0 | DO8: C | DP8: b0 | DQ8: b1 | DR8: Y | DS8: T0
A9: 0.5 | B9: 0.25 | C9: 100 | D9: 94 | E9: 50 | F9: 154 | G9: 200 | H9: 39 | I9: 100 | J9: 94 | K9: 50 | L9: 154 | M9: 200 | N9: 39 | P9: 0.5 | Q9: 0.25 | R9: 100 | S9: (4) | T9: 50 | U9: 36 | V9: 200 | W9: 9 | X9: (4) | Y9: 50 | Z9: 36 | AA9: 200 | AB9: 9 | AE9: 0.25 | AF9: 85.00 | AG9: 0.85 | AH9: 55.00 | AI9: 0.40 | AJ9: 220.00 | AK9: 0.10 | AL9: 85.00 | AM9: 0.85 | AN9: 55.00 | AO9: 0.40 | AP9: 220.00 | AQ9: 0.10 | AT9: 0.25 | AU9: 195.00 | AV9: 0.29 | AW9: 500.00 | AX9: 0.10 | AY9: 125.00 | AZ9: 0.14 | BA9: 195.00 | BB9: 0.29 | BC9: 125.00 | BD9: 0.14 | BF9: 0.5 | BG9: 0.25 | BH9: 250 | BI9: 135 | BJ9: 125 | BK9: 210 | BL9: 500 | BM9: 53 | BN9: 250 | BO9: 135 | BP9: 125 | BQ9: 210 | BR9: 500 | BS9: 53 | BU9: 0.5 | BV9: 0.25 | BW9: 650 | BX9: 530 | BY9: 325 | BZ9: 1,050 | CA9: 1,300 | CB9: 263 | CC9: 150 | CD9: 450 | CE9: 255 | CF9: 20 | CG9: 235 | CI9: 100 | CJ9: 200 | CK9: 135.00 | CL9: 325.00 | CM9: 200.00 | CN9: 1,300.00 | CO9: 50.00 | CP9: 845.00 | CQ9: 325.00 | CR9: 450.00 | CS9: 1,300.00 | CT9: 112.50 | CU9: 650 | CV9: 325.00 | CW9: 1,300.00 | CZ9: =DA9+(DB9*(DC9-DD9)) -> 215.0 | DA9: =Sistema!C8 -> 70.00 | DB9: =Sistema!D8 -> 0.75 | DC9: =DA5 -> 243.33 | DD9: =DE9 -> 50.00 | DE9: =Sistema!F8 -> 50.00 | DH9: =DI9+(DJ9*(DK9-DL9)) -> 1,193.3 | DI9: =Sistema_Ampliado!C9 -> 60.00 | DJ9: =Sistema_Ampliado!D9 -> 0.80 | DK9: =DI5 -> 1,516.67 | DL9: =DL25 -> 100.00 | DO9: =DP9+(DQ9*(DR9-DS9)) -> 1,193.3 | DP9: =DI9 -> 60.00 | DQ9: =DJ9 -> 0.80 | DR9: =DP5 -> 1,516.67 | DS9: =DX14 -> 100.00
A10: 0.6 | B10: 0.3 | C10: 120 | D10: 106 | E10: 60 | F10: 154 | G10: 200 | H10: 46 | I10: 120 | J10: 106 | K10: 60 | L10: 154 | M10: 200 | N10: 46 | P10: 0.6 | Q10: 0.3 | R10: 120 | S10: 4 | T10: 60 | U10: 36 | V10: 200 | W10: 11 | X10: 4 | Y10: 60 | Z10: 36 | AA10: 200 | AB10: 11 | AE10: 0.3 | AF10: 102.00 | AG10: 0.79 | AH10: 66.00 | AI10: =$AF$30 -> 0.40 | AJ10: 220.00 | AK10: 0.12 | AL10: 102.00 | AM10: 0.79 | AN10: 66.00 | AO10: 0.40 | AP10: 220.00 | AQ10: 0.12 | AT10: 0.3 | AU10: 234.00 | AV10: 0.27 | AW10: 500.00 | AX10: 0.12 | AY10: 150.00 | AZ10: 0.14 | BA10: 234.00 | BB10: 0.27 | BC10: 150.00 | BD10: 0.14 | BF10: 0.6 | BG10: 0.3 | BH10: 300 | BI10: 150 | BJ10: 150 | BK10: 210 | BL10: 500 | BM10: 63 | BN10: 300 | BO10: 150 | BP10: 150 | BQ10: 210 | BR10: 500 | BS10: 63 | BU10: 0.6 | BV10: 0.3 | BW10: 780 | BX10: 634 | BY10: 390 | BZ10: 1,050 | CA10: 1,300 | CB10: 315 | CC10: 150 | CD10: 450 | CE10: 294 | CF10: 46 | CG10: 248 | CI10: 100 | CJ10: 200 | CK10: 148.00 | CL10: 390.00 | CM10: 200.00 | CN10: 1,300.00 | CO10: 60.00 | CP10: 936.00 | CQ10: 390.00 | CR10: 450.00 | CS10: 1,300.00 | CT10: 135.00 | CU10: 780 | CV10: 390.00 | CW10: 1,300.00
A11: 0.7 | B11: 0.35 | C11: 140 | D11: 118 | E11: 70 | F11: 154 | G11: 200 | H11: 54 | I11: 140 | J11: 118 | K11: 70 | L11: 154 | M11: 200 | N11: 54 | P11: 0.7 | Q11: 0.35 | R11: 140 | S11: 12 | T11: 70 | U11: 36 | V11: 200 | W11: 13 | X11: 12 | Y11: 70 | Z11: 36 | AA11: 200 | AB11: 13 | AE11: 0.35 | AF11: 119.00 | AG11: 0.74 | AH11: 77.00 | AI11: 0.40 | AJ11: 220.00 | AK11: 0.14 | AL11: 119.00 | AM11: 0.74 | AN11: 77.00 | AO11: 0.40 | AP11: 220.00 | AQ11: 0.14 | AT11: 0.35 | AU11: 273.00 | AV11: 0.25 | AW11: 500.00 | AX11: 0.14 | AY11: 175.00 | AZ11: 0.14 | BA11: 273.00 | BB11: 0.25 | BC11: 175.00 | BD11: 0.14 | BF11: 0.7 | BG11: 0.35 | BH11: 350 | BI11: 165 | BJ11: 175 | BK11: 210 | BL11: 500 | BM11: 74 | BN11: 350 | BO11: 165 | BP11: 175 | BQ11: 210 | BR11: 500 | BS11: 74 | BU11: 0.7 | BV11: 0.35 | BW11: 910 | BX11: 738 | BY11: 455 | BZ11: 1,050 | CA11: 1,300 | CB11: 368 | CC11: 150 | CD11: 450 | CE11: 333 | CF11: 72 | CG11: 261 | CI11: 100 | CJ11: 200 | CK11: 161.00 | CL11: 455.00 | CM11: 200.00 | CN11: 1,300.00 | CO11: 70.00 | CP11: 1,027.00 | CQ11: 455.00 | CR11: 450.00 | CS11: 1,300.00 | CT11: 157.50 | CU11: 910 | CV11: 455.00 | CW11: 1,300.00 | CZ11: AHORRO | DH11: AHORRO | DO11: AHORRO
A12: 0.8 | B12: 0.4 | C12: 160 | D12: 130 | E12: 80 | F12: 154 | G12: 200 | H12: 62 | I12: 160 | J12: 130 | K12: 80 | L12: 154 | M12: 200 | N12: 62 | P12: 0.8 | Q12: 0.4 | R12: 160 | S12: 20 | T12: 80 | U12: 36 | V12: 200 | W12: 14 | X12: 20 | Y12: 80 | Z12: 36 | AA12: 200 | AB12: 14 | AE12: 0.4 | AF12: 136.00 | AG12: 0.68 | AH12: 88.00 | AI12: 0.40 | AJ12: 220.00 | AK12: =$AF$30*AE12 -> 0.16 | AL12: 136.00 | AM12: 0.68 | AN12: 88.00 | AO12: 0.40 | AP12: 220.00 | AQ12: 0.16 | AT12: 0.4 | AU12: 312.00 | AV12: 0.23 | AW12: 500.00 | AX12: 0.16 | AY12: 200.00 | AZ12: 0.14 | BA12: 312.00 | BB12: 0.23 | BC12: 200.00 | BD12: 0.14 | BF12: 0.8 | BG12: 0.4 | BH12: 400 | BI12: 180 | BJ12: 200 | BK12: 210 | BL12: 500 | BM12: 84 | BN12: 400 | BO12: 180 | BP12: 200 | BQ12: 210 | BR12: 500 | BS12: 84 | BU12: 0.8 | BV12: 0.4 | BW12: 1,040 | BX12: 842 | BY12: 520 | BZ12: 1,050 | CA12: 1,300 | CB12: 420 | CC12: 150 | CD12: 450 | CE12: 372 | CF12: 98 | CG12: 274 | CI12: 100 | CJ12: 200 | CK12: 174.00 | CL12: 520.00 | CM12: 200.00 | CN12: 1,300.00 | CO12: 80.00 | CP12: 1,118.00 | CQ12: 520.00 | CR12: 450.00 | CS12: 1,300.00 | CT12: 180.00 | CU12: 1,040 | CV12: 520.00 | CW12: 1,300.00 | CZ12: S | DA12: -b0 | DB12: 1-b1 | DC12: Y | DD12: T | DH12: S | DI12: s0 | DJ12: s1 | DK12: Y | DO12: S | DP12: s0 | DQ12: s1 | DR12: Y
A13: 0.9 | B13: 0.45 | C13: 180 | D13: 142 | E13: 90 | F13: 154 | G13: 200 | H13: 69 | I13: 180 | J13: 142 | K13: 90 | L13: 154 | M13: 200 | N13: 69 | P13: 0.9 | Q13: 0.45 | R13: 180 | S13: 28 | T13: 90 | U13: 36 | V13: 200 | W13: 16 | X13: 28 | Y13: 90 | Z13: 36 | AA13: 200 | AB13: 16 | AE13: 0.45 | AF13: 153.00 | AG13: 0.62 | AH13: 99.00 | AI13: 0.40 | AJ13: 220.00 | AK13: 0.18 | AL13: 153.00 | AM13: 0.62 | AN13: 99.00 | AO13: 0.40 | AP13: 220.00 | AQ13: 0.18 | AT13: 0.45 | AU13: 351.00 | AV13: 0.21 | AW13: 500.00 | AX13: 0.18 | AY13: 225.00 | AZ13: 0.14 | BA13: 351.00 | BB13: 0.21 | BC13: 225.00 | BD13: 0.14 | BF13: 0.9 | BG13: 0.45 | BH13: 450 | BI13: 195 | BJ13: 225 | BK13: 210 | BL13: 500 | BM13: 95 | BN13: 450 | BO13: 195 | BP13: 225 | BQ13: 210 | BR13: 500 | BS13: 95 | BU13: 0.9 | BV13: 0.45 | BW13: 1,170 | BX13: 946 | BY13: 585 | BZ13: 1,050 | CA13: 1,300 | CB13: 473 | CC13: 150 | CD13: 450 | CE13: 411 | CF13: 124 | CG13: 287 | CI13: 100 | CJ13: 200 | CK13: 187.00 | CL13: 585.00 | CM13: 200.00 | CN13: 1,300.00 | CO13: 90.00 | CP13: 1,209.00 | CQ13: 585.00 | CR13: 450.00 | CS13: 1,300.00 | CT13: 202.50 | CU13: 1,170 | CV13: 585.00 | CW13: 1,300.00 | CZ13: =DA13+(DB13*(DC13-DD13)) -> (21.7) | DA13: =DA9*-1 -> -70.00 | DB13: =1-DB9 -> 0.25 | DC13: =DA5 -> 243.33 | DD13: =DE9 -> 50.00 | DH13: =DI13+(DJ13*(DK13-DL9)) -> 223.3 | DI13: =-DI9 -> -60.00 | DJ13: =1-DJ9 -> 0.20 | DK13: =DI5 -> 1,516.67 | DO13: =DP13+(DQ13*(DR13-DS9)) -> 223.3 | DP13: =DI13 -> -60.00 | DQ13: =DJ13 -> 0.20 | DR13: =DP5 -> 1,516.67 | DW13: G | DX13: T | DY13: i0 | DZ13: r
A14: 1 | B14: 0.5 | C14: 200 | D14: 154 | E14: 100 | F14: 154 | G14: 200 | H14: 77 | I14: 200 | J14: 154 | K14: 100 | L14: 154 | M14: 200 | N14: 77 | P14: 1 | Q14: 0.5 | R14: 200 | S14: 36 | T14: 100 | U14: 36 | V14: 200 | W14: 18 | X14: 36 | Y14: 100 | Z14: 36 | AA14: 200 | AB14: 18 | AE14: 0.5 | AF14: 170.00 | AG14: 0.57 | AH14: 110.00 | AI14: 0.40 | AJ14: 220.00 | AK14: 0.20 | AL14: 170.00 | AM14: 0.57 | AN14: 110.00 | AO14: 0.40 | AP14: 220.00 | AQ14: 0.20 | AT14: 0.5 | AU14: 390.00 | AV14: 0.20 | AW14: 500.00 | AX14: 0.20 | AY14: 250.00 | AZ14: 0.14 | BA14: 390.00 | BB14: 0.20 | BC14: 250.00 | BD14: 0.14 | BF14: 1 | BG14: 0.5 | BH14: 500 | BI14: 210 | BJ14: 250 | BK14: 210 | BL14: 500 | BM14: 105 | BN14: 500 | BO14: 210 | BP14: 250 | BQ14: 210 | BR14: 500 | BS14: 105 | BU14: 1 | BV14: 0.5 | BW14: 1,300 | BX14: 1,050 | BY14: 650 | BZ14: 1,050 | CA14: 1,300 | CB14: 525 | CC14: 150 | CD14: 450 | CE14: 450 | CF14: 150 | CG14: 300 | CI14: 100 | CJ14: 200 | CK14: 200.00 | CL14: 650.00 | CM14: 200.00 | CN14: 1,300.00 | CO14: 100.00 | CP14: 1,300.00 | CQ14: 650.00 | CR14: 450.00 | CS14: 1,300.00 | CT14: 225.00 | CU14: 1,300 | CV14: 650.00 | CW14: 1,300.00 | DW14: =DI25+(DI25*DW15) -> 100.00 | DX14: =DL9+(DL9*DX15) -> 100.00 | DY14: =DI17+(DI17*DY15) -> 235.00 | DZ14: =DH21+DZ15 -> 0%
A15: 1.1 | B15: 0.55 | C15: 220 | D15: 166 | E15: 110 | F15: 154 | G15: 200 | H15: 85 | I15: 220 | J15: 166 | K15: 110 | L15: 154 | M15: 200 | N15: 85 | P15: 1.1 | Q15: 0.55 | R15: 220 | S15: 44 | T15: 110 | U15: 36 | V15: 200 | W15: 20 | X15: 44 | Y15: 110 | Z15: 36 | AA15: 200 | AB15: 20 | AE15: 0.55 | AF15: 187.00 | AG15: 0.51 | AH15: 121.00 | AI15: 0.40 | AJ15: 220.00 | AK15: 0.22 | AL15: 187.00 | AM15: 0.51 | AN15: 121.00 | AO15: 0.40 | AP15: 220.00 | AQ15: 0.22 | AT15: 0.55 | AU15: 429.00 | AV15: 0.18 | AW15: 500.00 | AX15: 0.21 | AY15: 275.00 | AZ15: 0.14 | BA15: 429.00 | BB15: 0.18 | BC15: 275.00 | BD15: 0.14 | BF15: 1.1 | BG15: 0.55 | BH15: 550 | BI15: 225 | BJ15: 275 | BK15: 210 | BL15: 500 | BM15: 116 | BN15: 550 | BO15: 225 | BP15: 275 | BQ15: 210 | BR15: 500 | BS15: 116 | BU15: 1.1 | BV15: 0.55 | BW15: 1,430 | BX15: 1,154 | BY15: 715 | BZ15: 1,050 | CA15: 1,300 | CB15: 578 | CC15: 150 | CD15: 450 | CE15: 489 | CF15: 176 | CG15: 313 | CI15: 100 | CJ15: 200 | CK15: 213.00 | CL15: 715.00 | CM15: 200.00 | CN15: 1,300.00 | CO15: 110.00 | CP15: 1,391.00 | CQ15: 715.00 | CR15: 450.00 | CS15: 1,300.00 | CT15: 247.50 | CU15: 1,430 | CV15: 715.00 | CW15: 1,300.00 | CZ15: INVERSIÓN | DH15: INVERSIÓN | DO15: INVERSIÓN | DW15: =Sistema_Ampliado!P7 -> 0.00% | DX15: =Sistema_Ampliado!Q7 -> 0.00% | DY15: =Sistema_Ampliado!R7 -> 0.00% | DZ15: =Sistema_Ampliado!S7 -> 0.00%
A16: 1.2 | B16: 0.6 | C16: 240 | D16: 178 | E16: 120 | F16: 154 | G16: 200 | H16: 92 | I16: 240 | J16: 178 | K16: 120 | L16: 154 | M16: 200 | N16: 92 | P16: 1.2 | Q16: 0.6 | R16: 240 | S16: 52 | T16: 120 | U16: 36 | V16: 200 | W16: 22 | X16: 52 | Y16: 120 | Z16: 36 | AA16: 200 | AB16: 22 | AE16: 0.6 | AF16: 204.00 | AG16: 0.45 | AH16: 132.00 | AI16: 0.40 | AJ16: 220.00 | AK16: 0.24 | AL16: 204.00 | AM16: 0.45 | AN16: 132.00 | AO16: 0.40 | AP16: 220.00 | AQ16: 0.24 | AT16: 0.6 | AU16: 468.00 | AV16: 0.16 | AW16: 500.00 | AX16: 0.23 | AY16: 300.00 | AZ16: 0.14 | BA16: 468.00 | BB16: 0.16 | BC16: 300.00 | BD16: 0.14 | BF16: 1.2 | BG16: 0.6 | BH16: 600 | BI16: 240 | BJ16: 300 | BK16: 210 | BL16: 500 | BM16: 126 | BN16: 600 | BO16: 240 | BP16: 300 | BQ16: 210 | BR16: 500 | BS16: 126 | BU16: 1.2 | BV16: 0.6 | BW16: 1,560 | BX16: 1,258 | BY16: 780 | BZ16: 1,050 | CA16: 1,300 | CB16: 630 | CC16: 150 | CD16: 450 | CE16: 528 | CF16: 202 | CG16: 326 | CI16: 100 | CJ16: 200 | CK16: 226.00 | CL16: 780.00 | CM16: 200.00 | CN16: 1,300.00 | CO16: 120.00 | CP16: 1,482.00 | CQ16: 780.00 | CR16: 450.00 | CS16: 1,300.00 | CT16: 270.00 | CU16: 1,560 | CV16: 780.00 | CW16: 1,300.00 | CZ16: I | DA16: i0 | DH16: I | DI16: i0 | DO16: I | DP16: i0 | DQ16: i1 | DR16: r* | DS16: i2 | DT16: Emk0
A17: 1.3 | B17: 0.65 | C17: 260 | D17: 190 | E17: 130 | F17: 154 | G17: 200 | H17: 100 | I17: 260 | J17: 190 | K17: 130 | L17: 154 | M17: 200 | N17: 100 | P17: 1.3 | Q17: 0.65 | R17: 260 | S17: 60 | T17: 130 | U17: 36 | V17: 200 | W17: 23 | X17: 60 | Y17: 130 | Z17: 36 | AA17: 200 | AB17: 23 | AE17: 0.65 | AF17: 221.00 | AG17: 0.40 | AH17: 143.00 | AI17: 0.40 | AJ17: 220.00 | AK17: 0.26 | AL17: 221.00 | AM17: 0.40 | AN17: 143.00 | AO17: 0.40 | AP17: 220.00 | AQ17: 0.26 | AT17: 0.65 | AU17: 507.00 | AV17: 0.14 | AW17: 500.00 | AX17: 0.25 | AY17: 325.00 | AZ17: 0.14 | BA17: 507.00 | BB17: 0.14 | BC17: 325.00 | BD17: 0.14 | BF17: 1.3 | BG17: 0.65 | BH17: 650 | BI17: 255 | BJ17: 325 | BK17: 210 | BL17: 500 | BM17: 137 | BN17: 650 | BO17: 255 | BP17: 325 | BQ17: 210 | BR17: 500 | BS17: 137 | BU17: 1.3 | BV17: 0.65 | BW17: 1,690 | BX17: 1,362 | BY17: 845 | BZ17: 1,050 | CA17: 1,300 | CB17: 683 | CC17: 150 | CD17: 450 | CE17: 567 | CF17: 228 | CG17: 339 | CI17: 100 | CJ17: 200 | CK17: 239.00 | CL17: 845.00 | CM17: 200.00 | CN17: 1,300.00 | CO17: 130.00 | CP17: 1,573.00 | CQ17: 845.00 | CR17: 450.00 | CS17: 1,300.00 | CT17: 292.50 | CU17: 1,690 | CV17: 845.00 | CW17: 1,300.00 | CZ17: =DA17 -> 100.0 | DA17: =Sistema!C16 -> 100.00 | DH17: =DI17 -> 235.0 | DI17: =Sistema_Ampliado!C17 -> 235.00 | DO17: =DP17+(DQ17*DR17)+(DS17*DT17) -> 235.00 | DP17: =DY14 -> 235.00 | DQ17: =DJ17 -> 0.00 | DR17: =IF(DO21>DQ21,DO21,DQ21) -> 0% | DS17: =DL17 -> 0.00 | DT17: =DW18 -> 0 | DW17: EMK | DX17: X | DY17: q0 | DZ17: q1
A18: 1.4 | B18: 0.7 | C18: 280 | D18: 202 | E18: 140 | F18: 154 | G18: 200 | H18: 108 | I18: 280 | J18: 202 | K18: 140 | L18: 154 | M18: 200 | N18: 108 | P18: 1.4 | Q18: 0.7 | R18: 280 | S18: 68 | T18: 140 | U18: 36 | V18: 200 | W18: 25 | X18: 68 | Y18: 140 | Z18: 36 | AA18: 200 | AB18: 25 | AE18: 0.7 | AF18: 238.00 | AG18: 0.34 | AH18: 154.00 | AI18: 0.40 | AJ18: 220.00 | AK18: 0.28 | AL18: 238.00 | AM18: 0.34 | AN18: 154.00 | AO18: 0.40 | AP18: 220.00 | AQ18: 0.28 | AT18: 0.7 | AU18: 546.00 | AV18: 0.12 | AW18: 500.00 | AX18: 0.27 | AY18: 350.00 | AZ18: 0.14 | BA18: 546.00 | BB18: 0.12 | BC18: 350.00 | BD18: 0.14 | BF18: 1.4 | BG18: 0.7 | BH18: 700 | BI18: 270 | BJ18: 350 | BK18: 210 | BL18: 500 | BM18: 147 | BN18: 700 | BO18: 270 | BP18: 350 | BQ18: 210 | BR18: 500 | BS18: 147 | BU18: 1.4 | BV18: 0.7 | BW18: 1,820 | BX18: 1,466 | BY18: 910 | BZ18: 1,050 | CA18: 1,300 | CB18: 735 | CC18: 150 | CD18: 450 | CE18: 606 | CF18: 254 | CG18: 352 | CI18: 100 | CJ18: 200 | CK18: 252.00 | CL18: 910.00 | CM18: 200.00 | CN18: 1,300.00 | CO18: 140.00 | CP18: 1,664.00 | CQ18: 910.00 | CR18: 450.00 | CS18: 1,300.00 | CT18: 315.00 | CU18: 1,820 | CV18: 910.00 | CW18: 1,300.00 | DW18: =DM17+DW19 -> 0% | DX18: =DI29*(1+DX19) -> 150.00 | DY18: =DI33*(1+DY19) -> 10.00 | DZ18: =DJ33+DZ19 -> 0.10
A19: 1.5 | B19: 0.75 | C19: 300 | D19: 214 | E19: 150 | F19: 154 | G19: 200 | H19: 116 | I19: 300 | J19: 214 | K19: 150 | L19: 154 | M19: 200 | N19: 116 | P19: 1.5 | Q19: 0.75 | R19: 300 | S19: 76 | T19: 150 | U19: 36 | V19: 200 | W19: 27 | X19: 76 | Y19: 150 | Z19: 36 | AA19: 200 | AB19: 27 | AE19: 0.75 | AF19: 255.00 | AG19: 0.28 | AH19: 165.00 | AI19: 0.40 | AJ19: 220.00 | AK19: 0.30 | AL19: 255.00 | AM19: 0.28 | AN19: 165.00 | AO19: 0.40 | AP19: 220.00 | AQ19: 0.30 | AT19: 0.75 | AU19: 585.00 | AV19: 0.10 | AW19: 500.00 | AX19: 0.29 | AY19: 375.00 | AZ19: 0.14 | BA19: 585.00 | BB19: 0.10 | BC19: 375.00 | BD19: 0.14 | BF19: 1.5 | BG19: 0.75 | BH19: 750 | BI19: 285 | BJ19: 375 | BK19: 210 | BL19: 500 | BM19: 158 | BN19: 750 | BO19: 285 | BP19: 375 | BQ19: 210 | BR19: 500 | BS19: 158 | BU19: 1.5 | BV19: 0.75 | BW19: 1,950 | BX19: 1,570 | BY19: 975 | BZ19: 1,050 | CA19: 1,300 | CB19: 788 | CC19: 150 | CD19: 450 | CE19: 645 | CF19: 280 | CG19: 365 | CI19: 100 | CJ19: 200 | CK19: 265.00 | CL19: 975.00 | CM19: 200.00 | CN19: 1,300.00 | CO19: 150.00 | CP19: 1,755.00 | CQ19: 975.00 | CR19: 450.00 | CS19: 1,300.00 | CT19: 337.50 | CU19: 1,950 | CV19: 975.00 | CW19: 1,300.00 | CZ19: GASTO DEL GOBIERNO | DH19: TASA DE INTERÉS | DJ19: TRAMPA DE LIQUIDEZ | DO19: TASA DE INTERÉS | DQ19: TRAMPA DE LIQUIDEZ | DW19: =Sistema_Ampliado!O11 -> 0.00% | DX19: =Sistema_Ampliado!P11 -> 0.00% | DY19: =Sistema_Ampliado!Q11 -> 0.00% | DZ19: =Sistema_Ampliado!R11 -> 0.00%
A20: 1.6 | B20: 0.8 | C20: 320 | D20: 226 | E20: 160 | F20: 154 | G20: 200 | H20: 123 | I20: 320 | J20: 226 | K20: 160 | L20: 154 | M20: 200 | N20: 123 | P20: 1.6 | Q20: 0.8 | R20: 320 | S20: 84 | T20: 160 | U20: 36 | V20: 200 | W20: 29 | X20: 84 | Y20: 160 | Z20: 36 | AA20: 200 | AB20: 29 | AE20: 0.8 | AF20: 272.00 | AG20: 0.23 | AH20: 176.00 | AI20: 0.40 | AJ20: 220.00 | AK20: 0.32 | AL20: 272.00 | AM20: 0.23 | AN20: 176.00 | AO20: 0.40 | AP20: 220.00 | AQ20: 0.32 | AT20: 0.8 | AU20: 624.00 | AV20: 0.10 | AW20: 500.00 | AX20: 0.31 | AY20: 400.00 | AZ20: 0.14 | BA20: 624.00 | BB20: 0.10 | BC20: 400.00 | BD20: 0.14 | BF20: 1.6 | BG20: 0.8 | BH20: 800 | BI20: 300 | BJ20: 400 | BK20: 210 | BL20: 500 | BM20: 168 | BN20: 800 | BO20: 300 | BP20: 400 | BQ20: 210 | BR20: 500 | BS20: 168 | BU20: 1.6 | BV20: 0.8 | BW20: 2,080 | BX20: 1,674 | BY20: 1,040 | BZ20: 1,050 | CA20: 1,300 | CB20: 840 | CC20: 150 | CD20: 450 | CE20: 684 | CF20: 306 | CG20: 378 | CI20: 100 | CJ20: 200 | CK20: 278.00 | CL20: 1,040.00 | CM20: 200.00 | CN20: 1,300.00 | CO20: 160.00 | CP20: 1,846.00 | CQ20: 1,040.00 | CR20: 450.00 | CS20: 1,300.00 | CT20: 360.00 | CU20: 2,080 | CV20: 1,040.00 | CW20: 1,300.00 | CZ20: G | DA20: g0 | DH20: r | DJ20: r minima | DO20: r | DQ20: r minima
A21: 1.7 | B21: 0.85 | C21: 340 | D21: 238 | E21: 170 | F21: 154 | G21: 200 | H21: 131 | I21: 340 | J21: 238 | K21: 170 | L21: 154 | M21: 200 | N21: 131 | P21: 1.7 | Q21: 0.85 | R21: 340 | S21: 92 | T21: 170 | U21: 36 | V21: 200 | W21: 31 | X21: 92 | Y21: 170 | Z21: 36 | AA21: 200 | AB21: 31 | AE21: 0.85 | AF21: 289.00 | AG21: 0.17 | AH21: 187.00 | AI21: 0.40 | AJ21: 220.00 | AK21: 0.34 | AL21: 289.00 | AM21: 0.17 | AN21: 187.00 | AO21: 0.40 | AP21: 220.00 | AQ21: 0.34 | AT21: 0.85 | AU21: 663.00 | AV21: 0.10 | AW21: 500.00 | AX21: 0.33 | AY21: 425.00 | AZ21: 0.14 | BA21: 663.00 | BB21: 0.10 | BC21: 425.00 | BD21: 0.14 | BF21: 1.7 | BG21: 0.85 | BH21: 850 | BI21: 315 | BJ21: 425 | BK21: 210 | BL21: 500 | BM21: 179 | BN21: 850 | BO21: 315 | BP21: 425 | BQ21: 210 | BR21: 500 | BS21: 179 | BU21: 1.7 | BV21: 0.85 | BW21: 2,210 | BX21: 1,778 | BY21: 1,105 | BZ21: 1,050 | CA21: 1,300 | CB21: 893 | CC21: 150 | CD21: 450 | CE21: 723 | CF21: 332 | CG21: 391 | CI21: 100 | CJ21: 200 | CK21: 291.00 | CL21: 1,105.00 | CM21: 200.00 | CN21: 1,300.00 | CO21: 170.00 | CP21: 1,937.00 | CQ21: 1,105.00 | CR21: 450.00 | CS21: 1,300.00 | CT21: 382.50 | CU21: 2,210 | CV21: 1,105.00 | CW21: 1,300.00 | CZ21: =DA21 -> 200.0 | DA21: =Sistema!C20 -> 200.00 | DH21: =Sistema_Ampliado!B18 -> 0% | DJ21: =Sistema_Ampliado!D18 -> 0% | DO21: =DZ14 -> 0% | DQ21: =DJ21 -> 0%
A22: 1.8 | B22: 0.9 | C22: 360 | D22: 250 | E22: 180 | F22: 154 | G22: 200 | H22: 139 | I22: 360 | J22: 250 | K22: 180 | L22: 154 | M22: 200 | N22: 139 | P22: 1.8 | Q22: 0.9 | R22: 360 | S22: 100 | T22: 180 | U22: 36 | V22: 200 | W22: 32 | X22: 100 | Y22: 180 | Z22: 36 | AA22: 200 | AB22: 32 | AE22: 0.9 | AF22: 306.00 | AG22: 0.15 | AH22: 198.00 | AI22: 0.40 | AJ22: 220.00 | AK22: 0.36 | AL22: 306.00 | AM22: 0.15 | AN22: 198.00 | AO22: 0.40 | AP22: 220.00 | AQ22: 0.36 | AT22: 0.9 | AU22: 702.00 | AV22: 0.10 | AW22: 500.00 | AX22: 0.35 | AY22: 450.00 | AZ22: 0.14 | BA22: 702.00 | BB22: 0.10 | BC22: 450.00 | BD22: 0.14 | BF22: 1.8 | BG22: 0.9 | BH22: 900 | BI22: 330 | BJ22: 450 | BK22: 210 | BL22: 500 | BM22: 189 | BN22: 900 | BO22: 330 | BP22: 450 | BQ22: 210 | BR22: 500 | BS22: 189 | BU22: 1.8 | BV22: 0.9 | BW22: 2,340 | BX22: 1,882 | BY22: 1,170 | BZ22: 1,050 | CA22: 1,300 | CB22: 945 | CC22: 150 | CD22: 450 | CE22: 762 | CF22: 358 | CG22: 404 | CI22: 100 | CJ22: 200 | CK22: 304.00 | CL22: 1,170.00 | CM22: 200.00 | CN22: 1,300.00 | CO22: 180.00 | CP22: 2,028.00 | CQ22: 1,170.00 | CR22: 450.00 | CS22: 1,300.00 | CT22: 405.00 | CU22: 2,340 | CV22: 1,170.00 | CW22: 1,300.00
A23: 1.9 | B23: 0.95 | C23: 380 | D23: 262 | E23: 190 | F23: 154 | G23: 200 | H23: 146 | I23: 380 | J23: 262 | K23: 190 | L23: 154 | M23: 200 | N23: 146 | P23: 1.9 | Q23: 0.95 | R23: 380 | S23: 108 | T23: 190 | U23: 36 | V23: 200 | W23: 34 | X23: 108 | Y23: 190 | Z23: 36 | AA23: 200 | AB23: 34 | AE23: 0.95 | AF23: 323.00 | AG23: 0.15 | AH23: 209.00 | AI23: 0.40 | AJ23: 220.00 | AK23: 0.38 | AL23: 323.00 | AM23: 0.15 | AN23: 209.00 | AO23: 0.40 | AP23: 220.00 | AQ23: 0.38 | AT23: 0.95 | AU23: 741.00 | AV23: 0.10 | AW23: 500.00 | AX23: 0.37 | AY23: 475.00 | AZ23: 0.14 | BA23: 741.00 | BB23: 0.10 | BC23: 475.00 | BD23: 0.14 | BF23: 1.9 | BG23: 0.95 | BH23: 950 | BI23: 345 | BJ23: 475 | BK23: 210 | BL23: =$BG$30 -> 500 | BM23: 200 | BN23: 950 | BO23: 345 | BP23: 475 | BQ23: 210 | BR23: 500 | BS23: 200 | BU23: 1.9 | BV23: 0.95 | BW23: 2,470 | BX23: 1,986 | BY23: 1,235 | BZ23: 1,050 | CA23: 1,300 | CB23: 998 | CC23: 150 | CD23: 450 | CE23: 801 | CF23: 384 | CG23: 417 | CI23: 100 | CJ23: 200 | CK23: 317.00 | CL23: 1,235.00 | CM23: 200.00 | CN23: 1,300.00 | CO23: 190.00 | CP23: 2,119.00 | CQ23: 1,235.00 | CR23: 450.00 | CS23: 1,300.00 | CT23: 427.50 | CU23: 2,470 | CV23: 1,235.00 | CW23: 1,300.00 | CZ23: EXPORTACIONES | DH23: GASTO DEL GOBIERNO | DL23: IMPUESTOS | DO23: GASTO DEL GOBIERNO
A24: 2 | B24: 1 | C24: 400 | D24: 274 | E24: 200 | F24: 154 | G24: 200 | H24: 154 | I24: 400 | J24: 274 | K24: 200 | L24: 154 | M24: 200 | N24: 154 | P24: 2 | Q24: 1 | R24: 400 | S24: 116 | T24: 200 | U24: 36 | V24: 200 | W24: 36 | X24: 116 | Y24: 200 | Z24: 36 | AA24: 200 | AB24: 36 | AE24: 1 | AF24: =AE24*$AF$26 -> 340.00 | AG24: =IF(((AF24-$AF$28-($AF$32*$AF$33))/$AF$29)>$AF$31,((AF24-$AF$28-($AF$32*$AF$33))/$AF$29),$AF$31) -> 0.15 | AH24: 220.00 | AI24: 0.40 | AJ24: 220.00 | AK24: 0.40 | AL24: 340.00 | AM24: 0.15 | AN24: 220.00 | AO24: 0.40 | AP24: 220.00 | AQ24: 0.40 | AT24: 1 | AU24: 780.00 | AV24: =IF(((AU24-$AU$28-($AU$29*$AU$30))/$AU$31)>$AU$32,((AU24-$AU$28-($AU$29*$AU$30))/$AU$31),$AU$32) -> 0.10 | AW24: 500.00 | AX24: 0.39 | AY24: 500.00 | AZ24: 0.14 | BA24: 780.00 | BB24: =IF(((BA24-$AV$28-($AV$29*$AV$30))/$AV$31)>$AV$32,((BA24-$AV$28-($AV$29*$AV$30))/$AV$31),$AV$32) -> 0.10 | BC24: 500.00 | BD24: 0.14 | BF24: 2 | BG24: 1 | BH24: 1,000 | BI24: 360 | BJ24: 500 | BK24: 210 | BL24: =$BG$30 -> 500 | BM24: 210 | BN24: 1,000 | BO24: 360 | BP24: 500 | BQ24: 210 | BR24: 500 | BS24: 210 | BU24: 2 | BV24: 1 | BW24: 2,600 | BX24: 2,090 | BY24: 1,300 | BZ24: 1,050 | CA24: 1,300 | CB24: 1,050 | CC24: 150 | CD24: 450 | CE24: 840 | CF24: 410 | CG24: 430 | CI24: 100 | CJ24: 200 | CK24: 330.00 | CL24: 1,300.00 | CM24: 200.00 | CN24: 1,300.00 | CO24: 200.00 | CP24: 2,210.00 | CQ24: 1,300.00 | CR24: 450.00 | CS24: 1,300.00 | CT24: 450.00 | CU24: 2,600 | CV24: 1,300.00 | CW24: 1,300.00 | CZ24: X | DA24: x0 | DH24: G | DI24: g0 | DK24: SF | DL24: T | DM24: t0 | DO24: G | DP24: g0 | DR24: SF | DX24: FUNCIÓN ORIGINAL | DY24: CHOQUE | DZ24: VARIACIÓN ABS | EA24: VARIACIÓN REL
CZ25: =DA25 -> 50.0 | DA25: =Sistema!C28 -> 50.00 | DH25: =DI25 -> 100.0 | DI25: =Sistema_Ampliado!C25 -> 100.00 | DK25: =DL9-DH25 -> 0 | DL25: =DM25 -> 100.0 | DM25: =Sistema_Ampliado!C21 -> 100.00 | DO25: =DP25 -> 100.0 | DP25: =DW14 -> 100.00 | DR25: =DS9-DO25 -> 0
AE26: COTA | AF26: =MAX(AF34:AG34) -> 340.00 | AL26: =AF28+(AF32*AF37) -> 40.00 | AT26: COTA | AU26: =MAX(AU40:AV40) -> 780.00 | AY26: Ms | AZ26: Interés | BB26: Interés | BU26: Y | BV26: =(1/(1-BV30+BV44))*(BV29-(BV30*BV31)+BV34+BV37+BV40-BV43) -> 1,300.00 | DW26: Y | DX26: =DI5 -> 1,516.67 | DY26: =DP5 -> 1,516.67 | DZ26: =DY26-DX26 -> 0 | EA26: =(DY26/DX26)-1 -> 0.00%
A27: C1 | B27: =B28+(B29*(B30-B31)) -> 154.00 | C27: =C28+(C29*(C30-C31)) -> 154.00 | P27: S1 | Q27: =Q28+(Q29*(Q30-Q31)) -> 36.00 | R27: =R28+(R29*(R30-R31)) -> 36.00 | AE27: I1 | AF27: =$AF$28+($AF$29*$AF$30)+($AF$32*$AF$33) -> 220.00 | AG27: =$AG$28+($AG$29*$AG$30)+($AG$32*$AG$33) -> 220.00 | AT27: Md | AU27: =AU28+(AU29*AU30)+(AU31*AU41) -> 500.00 | AV27: =AV28+(AV29*AV30)+(AV31*AV41) -> 500.00 | AY27: =$AV$35 -> 500.00 | AZ27: =MAX($BB$4:$BB$24)*AT4 -> 0.00 | BB27: =MAX(AX4:AX24,AZ27:AZ47)*AT4 -> 0.00 | BF27: M1 | BG27: =BG28+(BG29*BG30) -> 210.00 | BH27: =BH28+(BH29*BH30) -> 210.00 | BX27: da | BY27: =BV29+(BV30*(BY37-BV31))+BV34+BV40-(BV43+(BV44*BY37))+BV37 -> 1,300.00 | CZ27: IMPORTACIONES | DH27: EXPORTACIONES | DO27: EXPORTACIONES | DW27: C | DX27: =DH9 -> 1,193.33 | DY27: =DO9 -> 1,193.33 | DZ27: =DY27-DX27 -> 0 | EA27: =(DY27/DX27)-1 -> 0.00%
A28: b0 | B28: =Consumo!C8 -> 40.00 | C28: =Consumo!D8 -> 40.00 | P28: s0 | Q28: =B28*-1 -> -40.00 | R28: =C28*-1 -> -40.00 | AE28: i0 | AF28: =Inversión!C7 -> 40.00 | AG28: =Inversión!D7 -> 40.00 | AT28: m0 | AU28: =Dinero!C7 -> 30.00 | AV28: =Dinero!D7 -> 30.00 | AY28: =$AV$35 -> 500.00 | AZ28: =MAX($BB$4:$BB$24)*AT5 -> 0.02 | BB28: =MAX(AX5:AX25,AZ28:AZ48)*AT5 -> 0.02 | BF28: m0 | BG28: =Importaciones!C7 -> 60.00 | BH28: =Importaciones!D7 -> 60.00 | BU28: FUNCIÓN CONSUMO | BX28: C | BY28: =BV29+(BV30*(BV26-BV31)) -> 1,050.00 | CZ28: M | DA28: m0 | DB28: m1 | DC28: Y | DH28: X | DI28: x0 | DO28: X | DP28: x0 | DW28: S | DX28: =DH13 -> 223.33 | DY28: =DO13 -> 223.33 | DZ28: 0 | EA28: =(DY28/DX28)-1 -> 0.00%
A29: b1 | B29: =Consumo!C9 -> 0.60 | C29: =Consumo!D9 -> 0.60 | P29: s1 | Q29: =1-B29 -> 0.40 | R29: =1-C29 -> 0.40 | AE29: i1 | AF29: =Inversión!C8 -> -300.00 | AG29: =Inversión!D8 -> -300.00 | AI29: =IF(((AF24-$AF$28-($AF$32*$AF$33))/$AF$29)>$AF$31,((AF24-$AF$28-($AF$32*$AF$33))/$AF$29),$AF$31) -> 0.15 | AT29: m1 | AU29: =Dinero!C8 -> 0.50 | AV29: =Dinero!D8 -> 0.50 | AY29: 500.00 | AZ29: 0.04 | BB29: 0.04 | BF29: m1 | BG29: =Importaciones!C8 -> 0.30 | BH29: =Importaciones!D8 -> 0.30 | BU29: b0 | BV29: =Demanda_Agregada!D7 -> 90.00 | BX29: I | BY29: =BV34 -> 150.00 | CZ29: =DA29+(DB29*DC29) -> 321.7 | DA29: =Sistema!C32 -> 200.00 | DB29: =Sistema!D32 -> 0.50 | DC29: =DA5 -> 243.33 | DH29: =DI29 -> 150.0 | DI29: =Sistema_Ampliado!C33 -> 150.00 | DO29: =DP29 -> 150.0 | DP29: =DX18 -> 150.00 | DW29: I | DX29: =DH17 -> 235.00 | DY29: =DO17 -> 235.00 | DZ29: 0 | EA29: =(DY29/DX29)-1 -> 0.00%
A30: Y | B30: =Consumo!C10 -> 200.00 | C30: =Consumo!D10 -> 200.00 | P30: Y | Q30: =B30 -> 200.00 | R30: =C30 -> 200.00 | AE30: r | AF30: =IF(Inversión!C9>Inversión!C10,Inversión!C9,Inversión!C10) -> 0.40 | AG30: =IF(Inversión!D9>Inversión!D10,Inversión!D9,Inversión!D10) -> 0.40 | AT30: Y | AU30: =Dinero!C9 -> 1,500.00 | AV30: =Dinero!D9 -> 1,500.00 | AY30: 500.00 | AZ30: 0.06 | BB30: 0.06 | BF30: Y | BG30: =Importaciones!C9 -> 500.00 | BH30: =Importaciones!D9 -> 500.00 | BU30: b1 | BV30: =Demanda_Agregada!D8 -> 0.80 | BX30: G | BY30: =$BV$37 -> 100.00 | DW30: r | DX30: =DK17 -> 0% | DY30: =DR17 -> 0% | DZ30: 0 | EA30: nd
A31: t0 | B31: =Consumo!C11 -> 10.00 | C31: =Consumo!D11 -> 10.00 | P31: t0 | Q31: =B31 -> 10.00 | R31: =C31 -> 10.00 | AE31: r trampa | AF31: =Inversión!C10 -> 0.15 | AG31: =Inversión!D10 -> 0.15 | AI31: =((AF24-$AF$28-($AF$32*$AF$33))/$AF$29) -> 0.00 | AT31: m2 | AU31: =Dinero!C10 -> -2,000.00 | AV31: =Dinero!D10 -> -2,000.00 | AY31: 500.00 | AZ31: 0.08 | BB31: 0.08 | BU31: t0 | BV31: =Demanda_Agregada!D9 -> 100.00 | BX31: X | BY31: =BV40 -> 200.00 | CZ31: SBC | DH31: IMPORTACIONES | DO31: IMPORTACIONES | DW31: G | DX31: =DH25 -> 100.00 | DY31: =DO25 -> 100.00 | DZ31: =DY31-DX31 -> 0 | EA31: =(DY31/DX31)-1 -> 0.00%
AE32: i2 | AF32: =Inversión!C11 -> 50.00 | AG32: =Inversión!D11 -> 50.00 | AT32: r Trampa de Liquidez | AU32: =Dinero!C11 -> 10% | AV32: =AU32 -> 10% | AY32: 500.00 | AZ32: 0.10 | BB32: 0.10 | BU32: C | BV32: =BY28 -> 1,050.00 | BX32: Q | BY32: =BV43+(BV44*BV26) -> 200.00 | CZ32: =CZ25-CZ29 -> (271.7) | DH32: Q | DI32: q0 | DJ32: q1 | DK32: Y | DO32: Q | DP32: q0 | DQ32: q1 | DR32: Y | DW32: SF | DX32: =DK25 -> 0 | DY32: =DR25 -> 0 | DZ32: 0 | EA32: =(DZ32/DY26) -> 0.00%
A33: NUEVO NIVEL DE IMPUESTOS | P33: NUEVO NIVEL DE IMPUESTOS | AE33: Emk0 | AF33: =Inversión!C12 -> 6.00 | AG33: =Inversión!D12 -> 6.00 | AT33: r equilibrio | AU33: =(AU35-AU28-(AU29*AU30))/AU31 -> 0.14 | AV33: =(AV35-AV28-(AV29*AV30))/AV31 -> 0.14 | AY33: 500.00 | AZ33: 0.12 | BB33: 0.12 | BF33: NUEVA PROPENSIÓN MARGINAL A IMPORTAR | BU33: INVERSIÓN | BX33: S | BY33: =-BV29+((1-BV30)*(BV26-BV31)) -> 150 | DH33: =DI33+(DJ33*DK33) -> 161.7 | DI33: =Sistema_Ampliado!C37 -> 10.00 | DJ33: =Sistema_Ampliado!D37 -> 0.10 | DK33: =DI5 -> 1,516.67 | DO33: =DP33+(DQ33*DR33) -> 161.7 | DP33: =DY18 -> 10.00 | DQ33: =DZ18 -> 0.10 | DR33: =DP5 -> 1,516.67 | DW33: x | DX33: =DH29 -> 150.00 | DY33: =DO29 -> 150.00 | DZ33: =DY33-DX33 -> 0 | EA33: 0.00%
A34: t1 | B34: 50.00 | C34: 50.00 | P34: t1 | Q34: 50.00 | AF34: =AF28+(AF32*AF33) -> 340 | AG34: =AG28+(AG32*AG33) -> 340 | AT34: FUNCIÓN DE OFERTA DE DINERO | AY34: 500.00 | AZ34: 0.14 | BB34: 0.14 | BF34: m1' | BG34: 0.20 | BU34: I | BV34: =Demanda_Agregada!D13 -> 150.00 | BX34: I+G+X | BY34: =BY29+BY30+BY31 -> 450.00 | DW34: Q | DX34: =DH33 -> 161.67 | DY34: =DO33 -> 161.67 | DZ34: =DY34-DX34 -> 0 | EA34: 0.00%
AT35: Ms | AU35: =Dinero!C14 -> 500.00 | AV35: =Dinero!D14 -> 500.00 | AY35: 500.00 | AZ35: 0.16 | BB35: 0.16 | BX35: S+T+Q | BY35: =BY33+BV31+BY32 -> 450.00 | CZ35: DEMANDA DE DINERO | DK35: MULTIPLICADOR | DR35: MULTIPLICADOR | DW35: SBC | DX35: =DH37 -> -11.67 | DY35: =DO37 -> -11.67 | DZ35: =DY35-DX35 -> 0 | EA35: 0.00%
AE36: NUEVO NIVEL EFICIENCIA MARGINAL DEL CAPITAL | AT36: NUEVO NIVEL DE m2 | AY36: 500.00 | AZ36: 0.18 | BB36: 0.18 | BU36: GOBIERNO | CZ36: MD | DA36: m0 | DB36: m1 | DC36: Y | DD36: m2 | DE36: r | DH36: SBC | DO36: SBC | DW36: Multiplicador | DX36: =DK37 -> 3.33 | DY36: =DR37 -> 3.33 | DZ36: =DY36-DX36 -> 0 | EA36: 0.00%
A37: C2 | B37: =B28+(B29*(B30-B34)) -> 130.00 | P37: S2 | Q37: =Q28+(Q29*(Q30-Q34)) -> 20.00 | AE37: Emk1 | AF37: 0.00 | AT37: m2 | AU37: 80.00 | AY37: 500.00 | AZ37: 0.20 | BB37: 0.20 | BF37: M2 | BU37: G | BV37: =Demanda_Agregada!D16 -> 100.00 | BX37: y | BY37: =(BV29-(BV30*BV31)+BV34+BV40-BV43+BV37)/(1-BV30+BV44) -> 1,300.00 | CZ37: =DA37+(DB37*DC37)+(DD37*DE37) ->  | DA37: =Sistema!C37 -> 0.00 | DB37: =Sistema!D37 -> 0.00 | DC37: =DA5 -> 243.33 | DD37: =Sistema!F37 -> 0.00 | DE37: =(DA41-DA37-(DB37*DC37))/DD37 ->  | DH37: =DH29-DH33 -> (11.7) | DK37: =1/(1-DJ9+DJ33) -> 3.3 | DO37: =DO29-DO33 -> (11.7) | DR37: =1/(1-DQ9+DQ33) -> 3.3
A38: Var | B38: =B37-B27 -> -24.00 | P38: Var | Q38: =Q37-Q27 -> -16.00 | AE38: I2 | AY38: 500.00 | AZ38: 0.21 | BB38: 0.21 | BF38: Var | BG38: =BH27-BG27 -> 0.00
AE39: Var | AF39: =AG27-AF27 -> 0.00 | AT39: Resultados | AU39: INICIAL | AV39: FINAL | AY39: 500.00 | AZ39: 0.23 | BB39: 0.23 | BU39: EXPORTACIONES | CZ39: OFERTA DE DINERO | DC39: TRAMPA DE LIQUIDEZ | DH39: Y | DI39: DA | DW39: DEMANDA DE DINERO | ED39: DEMANDA DE DINERO
AU40: =AU28+(AU29*AU30) -> 780 | AV40: =AV28+(AV29*AV30) -> 780 | AY40: 500.00 | AZ40: 0.25 | BB40: 0.25 | BU40: X | BV40: =Demanda_Agregada!D19 -> 200.00 | CZ40: Ms | DA40: Ms | DC40: Ms | DD40: Ms | DH40: =DI5 -> 1,516.67 | DI40: =DH9+DH17+DH25+DH29-DH33 -> 1,516.7 | DJ40: =DH40-DI40 -> 0 | DL40: S | DW40: MD | DX40: m0 | DY40: m1 | DZ40: Y | EA40: m2 | EB40: r | ED40: MD | EE40: m0 | EF40: m1 | EG40: Y | EH40: m2 | EI40: r
AT41: r | AU41: =IF(AU33>AU32,AU33,AU32) -> 14% | AV41: =IF(AV33>AV32,AV33,AV32) -> 14% | AY41: 500.00 | AZ41: 0.27 | BB41: 0.27 | CZ41: =DA41 -> 0 | DA41: =Sistema!C41 -> 0.00 | DC41: =DD41 -> 0 | DD41: =Sistema!F41 -> 0.00 | DH41: i+g+x | DI41: s+t+q | DL41: I | DW41: =DX41+(DY41*DZ41)+(EA41*EB41) ->  | DX41: =Sistema_Ampliado!O47 -> 0.00 | DY41: =Sistema_Ampliado!P47 -> 0.00 | DZ41: =DI5 -> 1,516.67 | EA41: =Sistema_Ampliado!R49 -> 0.00 | EB41: =(DH44-DX41-(DY41*DZ41))/EA41 ->  | ED41: =EE41+(EF41*EG41)+(EH41*EI41) ->  | EE41: =DX41 -> 0.00 | EF41: =DY41 -> 0.00 | EG41: =DP5 -> 1,516.67 | EH41: =EA41 -> 0.00 | EI41: =(DO44-EE41-(EF41*EG41))/EH41 -> 
AY42: 500.00 | AZ42: 0.29 | BB42: 0.29 | BU42: IMPORTACIONES | DH42: =DH17+DH25+DH29 -> 485.0 | DI42: =DH13+DL9+DH33 -> 485.00 | DJ42: =DH42-DI42 -> 0 | DO42: TRAMPA DE LIQUIDEZ
AY43: 500.00 | AZ43: 0.31 | BB43: 0.31 | BU43: m0 | BV43: =Demanda_Agregada!D22 -> 70.00 | DO43: Ms
AY44: 500.00 | AZ44: 0.33 | BB44: 0.33 | BU44: m1 | BV44: =Demanda_Agregada!D23 -> 0.10 | DO44: =DH44 -> 0.00
AY45: 500.00 | AZ45: 0.35 | BB45: 0.35 | BU45: Q | BV45: =BY32 -> 200.00
AY46: 500.00 | AZ46: 0.37 | BB46: 0.37
AY47: 500.00 | AZ47: 0.39 | BB47: 0.39
A49: SISTEMA CON GRÀFICAS
W50: CONSUMO | AL50: AHORRO | BA50: INVERSIÓN | BO50: IMPORTACIONES | CD50: MERCADO DE DINERO | CL50: ORIGINAL | DQ50: AMPLIADO
A51: SISTEMA ORIGINAL | H51: SISTEMA CON CHOQUES | W51: Unidades | X51: Ponderador | Y51: Ingreso | Z51: Consumo | AA51: plin | AC51: xlin | AE51: Ingreso 2 | AF51: Consumo 2 | AG51: plin | AI51: xlin | AL51: Unidades | AM51: Ponderador | AN51: Ingreso | AO51: Ahorro | AP51: plin | AR51: xlin | AT51: Ingreso 2 | AU51: Ahorro 2 | AV51: plin | AX51: xlin | BA51: Ponderador | BB51: Inversión | BC51: Interés | BD51: plin | BF51: xlin | BH51: Inversión 2 | BI51: Interés 2 | BJ51: plin | BL51: xlin | BO51: Unidades | BP51: Ponderador | BQ51: Ingreso | BR51: Importaciones | BS51: plin | BU51: xlin | BW51: Ingreso 2 | BX51: Importaciones 2 | BY51: plin | CA51: xlin | CD51: Ponderador | CE51: Md | CF51: Interés | CG51: Ms | CH51: Interés | CI51: plin | CL51: Unidades | CM51: Ponderador | CN51: Ingreso | CO51: Consumo | CP51: Inversión | CQ51: C + I Inicial | CR51: plin | CT51: xlin | CV51: G | CW51: Exportaciones | CX51: Importaciones | CY51: C+I+G+X-M Inicial | CZ51: plin | DB51: xlin | DD51: DA | DE51: plin | DI51: Unidades | DJ51: Ponderador | DK51: Ingreso | DL51: Consumo | DM51: Inversión | DN51: C + I Final | DO51: plin | DQ51: xlin | DS51: G | DT51: Exportaciones | DU51: Importaciones | DV51: C+I+G+X-M Final | DW51: plin | DY51: xlin | EA51: DA | EB51: plin
W52: 0 | X52: 0 | Y52: =$X$78*W52 -> 0 | Z52: =X$76+(X$77*(Y52-X$79)) -> (20) | AA52: =X52*$X$78 -> 0 | AB52: =$X$84 -> 447 | AC52: =$X$78 -> 583 | AD52: =X52*$X$84 -> 0 | AE52: =$Y$78*W52 -> 0 | AF52: =Y$76+(Y$77*(AE52-Y$79)) -> (20) | AG52: =X52*$Y$78 -> 0 | AH52: =$Y$84 -> 447 | AI52: =$Y$78 -> 583 | AJ52: =X52*$Y$84 -> 0 | AL52: 0 | AM52: 0 | AN52: =$AM$78*AL52 -> 0 | AO52: =$AM$76+($AM$77*(AN52-$AM$79)) -> (80) | AP52: =AM52*$AM$78 -> 0 | AQ52: =$AM$84 -> 37 | AR52: =$AM$78 -> 583 | AS52: =AM52*$AM$84 -> 0 | AT52: =$AN$78*AL52 -> 0 | AU52: =$AN$76+($AN$77*(AT52-$AN$79)) -> (80) | AV52: =AM52*$AN$78 -> 0 | AW52: =$AN$84 -> 37 | AX52: =$AN$78 -> 583 | AY52: =AM52*$AN$84 -> 0 | BA52: 0 | BB52: =BA52*$BB$74 -> 0.00 | BC52: 5.00 | BD52: =BA52*$BB$85 -> 0.00 | BE52: =$BB$78 -> 0.00 | BF52: =$BB$85 -> 100.00 | BG52: =$BB$78*BA52 -> 0.00 | BH52: =BA52*$BH$74 -> 0.00 | BI52: =(BH52-$BC$76-($BC$79*$BC$80))/$BC$77 ->  | BJ52: =BA52*$BC$85 -> 0.00 | BK52: =$BC$78 -> 0.00 | BL52: =$BC$85 -> 100.00 | BM52: =$BC$78*BA52 -> 0.00 | BO52: 0 | BP52: 0 | BQ52: =$BP$78*BO52 -> 0 | BR52: =$BP$76+($BP$77*BQ52) -> 30 | BS52: =BP52*$BP$78 -> 0 | BT52: =$BP$84 -> 263 | BU52: =$BP$78 -> 583 | BV52: =BP52*$BP$84 -> 0 | BW52: =$BQ$78*BO52 -> 0 | BX52: =$BQ$76+($BQ$77*BW52) -> 30 | BY52: =BP52*$BQ$78 -> 0 | BZ52: =$BQ$84 -> 263 | CA52: =$BQ$78 -> 583 | CB52: =BP52*$BQ$84 -> 0 | CD52: 0 | CE52: =AT4*$CF$74 ->  | CF52: =($CF$76-CE52+($CF$77*$CF$78))/($CF$79*-1) ->  | CG52: =$CF$82 ->  | CH52: =MAX($CF$52:$CF$72)*CD52 ->  | CI52: =$CF$82*CD52 ->  | CJ52: =$CF$89 ->  | CL52: 0 | CM52: 0 | CN52: =MAX($CM$74,$CP$83)*CL52 -> 0 | CO52: =CM77+(CM78*(CN52-CM79)) -> (20) | CP52: =$CM$82 -> 100 | CQ52: =CO52+CP52 -> 80 | CR52: =$CM$74*CM52 -> 0 | CS52: =$CP$74 -> 447 | CT52: =$CM$74 -> 583 | CU52: =CM52*$CP$80 -> 0 | CV52: =$CM$85 -> 100 | CW52: =$CM$88 -> 200 | CX52: =$CM$91+($CM$92*CN52) -> 30.00 | CY52: =($CM$77+($CM$78*(CN52-$CM$79)))+$CP$75+$CP$76+$CP$77-($CM$91+($CM$92*CN52)) -> 350.00 | CZ52: =CM52*$CM$74 -> 0 | DA52: =$CP$81 -> 583.33 | DB52: =$CM$74 -> 583.33 | DC52: =CM52*$CP$81 -> 0 | DD52: =CN52 -> 0 | DE52: =CM52*$CP$83 -> 0 | DF52: =$CP$83 -> 583.33 | DI52: 0 | DJ52: 0 | DK52: =MAX($DJ$74,$DM$83)*DI52 -> 0 | DL52: =$DJ$77+($DJ$78*(DK52-$DJ$79)) -> (20) | DM52: =$DJ$82 -> 100 | DN52: =DL52+DM52 -> 80 | DO52: =$DJ$74*DJ52 -> 0 | DP52: =$DM$80 -> 547 | DQ52: =$DJ$74 -> 583 | DR52: =DJ52*$DM$80 -> 0 | DS52: =$DJ$85 -> 100 | DT52: =$DJ$88 -> 200 | DU52: =$DJ$91+($DJ$92*DK52) -> 30.00 | DV52: =($DJ$77+($DJ$78*(DK52-$DJ$79)))+$DM$75+$DM$76+$DM$77-($DJ$91+($DJ$92*DK52)) -> 350.00 | DW52: =DJ52*$DJ$74 -> 0 | DX52: =$DM$81 -> 583.33 | DY52: =$DJ$74 -> 583.33 | DZ52: =DJ52*$DM$81 -> 0 | EA52: =DK52 -> 0 | EB52: =DJ52*$DM$83 -> 0 | EC52: =$DM$83 -> 583.33
A53: Y | B53: =(1/(1-C57+C81))*(B57-(C57*E57)+A65+A69+D77-B81) -> 583.33 | H53: Y | I53: =(1/(1-J57+J81))*(I57-(J57*L57)+H65+H77+K77-I81) -> 583.33 | W53: 0.1 | X53: 0.05 | Y53: =$X$78*W53 -> 58 | Z53: =X$76+(X$77*(Y53-X$79)) -> 27 | AA53: 29 | AB53: 447 | AC53: 583 | AD53: 22 | AE53: =$Y$78*W53 -> 58 | AF53: =Y$76+(Y$77*(AE53-Y$79)) -> 27 | AG53: 29 | AH53: 447 | AI53: 583 | AJ53: 22 | AL53: 0.1 | AM53: 0.05 | AN53: 58 | AO53: (68) | AP53: 29 | AQ53: 37 | AR53: 583 | AS53: 2 | AT53: 58 | AU53: (68) | AV53: 29 | AW53: 37 | AX53: 583 | AY53: 2 | BA53: 0.05 | BB53: 5.00 | BC53: =(BB53-$BB$76-($BB$79*$BB$80))/$BB$77 ->  | BD53: 5.00 | BE53: 0.00 | BF53: 100.00 | BG53: 0.00 | BH53: =BA53*$BH$74 -> 5.00 | BI53: =(BH53-$BC$76-($BC$79*$BC$80))/$BC$77 ->  | BJ53: 5.00 | BK53: 0.00 | BL53: 100.00 | BM53: 0.00 | BO53: 0.1 | BP53: 0.05 | BQ53: 58 | BR53: 53 | BS53: 29 | BT53: 263 | BU53: 583 | BV53: 13 | BW53: 58 | BX53: =$BQ$76+($BQ$77*BW53) -> 53 | BY53: 29 | BZ53: 263 | CA53: 583 | CB53: 13 | CD53: 0.05 | CF53: =($CF$76-CE53+($CF$77*$CF$78))/($CF$79*-1) ->  | CH53: =MAX($CF$52:$CF$72)*CD53 ->  | CL53: 0.1 | CM53: 0.05 | CN53: =MAX($CM$74,$CP$83)*CL53 -> 58 | CO53: =$CM$77+($CM$78*(CN53-$CM$79)) -> 27 | CP53: 100 | CQ53: 127 | CR53: 29 | CS53: =$CP$74 -> 447 | CT53: 583 | CU53: 27 | CV53: 100 | CW53: 200 | CX53: 53.33 | CY53: =($CM$77+($CM$78*(CN53-$CM$79)))+$CP$75+$CP$76+$CP$77-($CM$91+($CM$92*CN53)) -> 373.33 | CZ53: 29.17 | DA53: 583.33 | DB53: 583.33 | DC53: 29.17 | DD53: =CN53 -> 58 | DE53: 29.17 | DF53: 583.33 | DI53: 0.1 | DJ53: 0.05 | DK53: =MAX($DJ$74,$DM$83)*DI53 -> 58 | DL53: =$DJ$77+($DJ$78*(DK53-$DJ$79)) -> 27 | DM53: =$DJ$82 -> 100 | DN53: =DL53+DM53 -> 127 | DO53: =$DJ$74*DJ53 -> 29 | DP53: =$DM$80 -> 547 | DQ53: =$DJ$74 -> 583 | DR53: =DJ53*$DM$80 -> 27 | DS53: =$DJ$85 -> 100 | DT53: =$DJ$88 -> 200 | DU53: =$DJ$91+($DJ$92*DK53) -> 53.33 | DV53: =($DJ$77+($DJ$78*(DK53-$DJ$79)))+$DM$75+$DM$76+$DM$77-($DJ$91+($DJ$92*DK53)) -> 373.33 | DW53: =DJ53*$DJ$74 -> 29.17 | DX53: =$DM$81 -> 583.33 | DY53: =$DJ$74 -> 583.33 | DZ53: 29.17 | EA53: =DK53 -> 58 | EB53: 29.17 | EC53: =$DM$83 -> 583.33
W54: 0.2 | X54: 0.1 | Y54: =$X$78*W54 -> 117 | Z54: 73 | AA54: 58 | AB54: 447 | AC54: 583 | AD54: 45 | AE54: =$Y$78*W54 -> 117 | AF54: 73 | AG54: 58 | AH54: 447 | AI54: 583 | AJ54: 45 | AL54: 0.2 | AM54: 0.1 | AN54: 117 | AO54: (57) | AP54: 58 | AQ54: 37 | AR54: 583 | AS54: 4 | AT54: 117 | AU54: (57) | AV54: 58 | AW54: 37 | AX54: 583 | AY54: 4 | BA54: 0.1 | BB54: 10.00 | BD54: 10.00 | BE54: 0.00 | BF54: 100.00 | BG54: 0.00 | BH54: 10.00 | BJ54: 10.00 | BK54: 0.00 | BL54: 100.00 | BM54: 0.00 | BO54: 0.2 | BP54: 0.1 | BQ54: 117 | BR54: 77 | BS54: 58 | BT54: 263 | BU54: 583 | BV54: 26 | BW54: 117 | BX54: 77 | BY54: 58 | BZ54: 263 | CA54: 583 | CB54: 26 | CD54: 0.1 | CL54: 0.2 | CM54: 0.1 | CN54: 117 | CO54: 73 | CP54: 100 | CQ54: 173 | CR54: 58 | CS54: 447 | CT54: 583 | CU54: 55 | CV54: 100 | CW54: 200 | CX54: 76.67 | CY54: 396.67 | CZ54: 58.33 | DA54: 583.33 | DB54: 583.33 | DC54: 58.33 | DD54: 117 | DE54: 58.33 | DF54: 583.33 | DI54: 0.2 | DJ54: 0.1 | DK54: 117 | DL54: 73 | DM54: 100 | DN54: 173 | DO54: 58 | DP54: 547 | DQ54: 583 | DR54: 55 | DS54: 100 | DT54: 200 | DU54: 76.67 | DV54: 396.67 | DW54: 58.33 | DX54: 583.33 | DY54: 583.33 | DZ54: 58.33 | EA54: 117 | EB54: 58.33 | EC54: 583.33
A55: CONSUMO | H55: CONSUMO | W55: 0.3 | X55: 0.15 | Y55: 175 | Z55: 120 | AA55: 88 | AB55: 447 | AC55: 583 | AD55: 67 | AE55: 175 | AF55: 120 | AG55: 88 | AH55: 447 | AI55: 583 | AJ55: 67 | AL55: 0.3 | AM55: 0.15 | AN55: 175 | AO55: (45) | AP55: 88 | AQ55: 37 | AR55: 583 | AS55: 6 | AT55: 175 | AU55: (45) | AV55: 88 | AW55: 37 | AX55: 583 | AY55: 6 | BA55: 0.15 | BB55: 15.00 | BD55: 15.00 | BE55: 0.00 | BF55: 100.00 | BG55: 0.00 | BH55: 15.00 | BJ55: 15.00 | BK55: 0.00 | BL55: 100.00 | BM55: 0.00 | BO55: 0.3 | BP55: 0.15 | BQ55: 175 | BR55: 100 | BS55: 88 | BT55: 263 | BU55: 583 | BV55: 40 | BW55: 175 | BX55: 100 | BY55: 88 | BZ55: 263 | CA55: 583 | CB55: 40 | CD55: 0.15 | CL55: 0.3 | CM55: 0.15 | CN55: 175 | CO55: 120 | CP55: 100 | CQ55: 220 | CR55: 88 | CS55: 447 | CT55: 583 | CU55: 82 | CV55: 100 | CW55: 200 | CX55: 100.00 | CY55: 420.00 | CZ55: 87.50 | DA55: 583.33 | DB55: 583.33 | DC55: 87.50 | DD55: 175 | DE55: 87.50 | DF55: 583.33 | DI55: 0.3 | DJ55: 0.15 | DK55: 175 | DL55: 120 | DM55: 100 | DN55: 220 | DO55: 88 | DP55: 547 | DQ55: 583 | DR55: 82 | DS55: 100 | DT55: 200 | DU55: 100.00 | DV55: 420.00 | DW55: 87.50 | DX55: 583.33 | DY55: 583.33 | DZ55: 87.50 | EA55: 175 | EB55: 87.50 | EC55: 583.33
A56: C | B56: b0 | C56: b1 | D56: Y | E56: T | H56: C | I56: b0 | J56: b1 | K56: Y | L56: T | W56: 0.4 | X56: 0.2 | Y56: 233 | Z56: 167 | AA56: 117 | AB56: 447 | AC56: 583 | AD56: 89 | AE56: 233 | AF56: 167 | AG56: 117 | AH56: 447 | AI56: 583 | AJ56: 89 | AL56: 0.4 | AM56: 0.2 | AN56: 233 | AO56: (33) | AP56: 117 | AQ56: 37 | AR56: 583 | AS56: 7 | AT56: 233 | AU56: (33) | AV56: 117 | AW56: 37 | AX56: 583 | AY56: 7 | BA56: 0.2 | BB56: 20.00 | BD56: 20.00 | BE56: 0.00 | BF56: 100.00 | BG56: 0.00 | BH56: 20.00 | BJ56: 20.00 | BK56: 0.00 | BL56: 100.00 | BM56: 0.00 | BO56: 0.4 | BP56: 0.2 | BQ56: 233 | BR56: 123 | BS56: 117 | BT56: 263 | BU56: 583 | BV56: 53 | BW56: 233 | BX56: 123 | BY56: 117 | BZ56: 263 | CA56: 583 | CB56: 53 | CD56: 0.2 | CL56: 0.4 | CM56: 0.2 | CN56: 233 | CO56: 167 | CP56: 100 | CQ56: 267 | CR56: 117 | CS56: 447 | CT56: 583 | CU56: 109 | CV56: 100 | CW56: 200 | CX56: 123.33 | CY56: 443.33 | CZ56: 116.67 | DA56: 583.33 | DB56: 583.33 | DC56: 116.67 | DD56: 233 | DE56: 116.67 | DF56: 583.33 | DI56: 0.4 | DJ56: 0.2 | DK56: 233 | DL56: 167 | DM56: 100 | DN56: 267 | DO56: 117 | DP56: 547 | DQ56: 583 | DR56: 109 | DS56: 100 | DT56: 200 | DU56: 123.33 | DV56: 443.33 | DW56: 116.67 | DX56: 583.33 | DY56: 583.33 | DZ56: 116.67 | EA56: 233 | EB56: 116.67 | EC56: 583.33
A57: =B57+(C57*(D57-E57)) -> 446.7 | B57: =Sistema_Gráficas!B8 -> 60.00 | C57: =Sistema_Gráficas!C8 -> 0.80 | D57: =B53 -> 583.33 | E57: =E69 -> 100.00 | H57: =I57+(J57*(K57-L57)) -> 446.7 | I57: =B57 -> 60.00 | J57: =C57 -> 0.80 | K57: =I53 -> 583.33 | L57: =L73 -> 100.00 | W57: 0.5 | X57: 0.25 | Y57: 292 | Z57: 213 | AA57: 146 | AB57: 447 | AC57: 583 | AD57: 112 | AE57: 292 | AF57: 213 | AG57: 146 | AH57: 447 | AI57: 583 | AJ57: 112 | AL57: 0.5 | AM57: 0.25 | AN57: 292 | AO57: (22) | AP57: 146 | AQ57: 37 | AR57: 583 | AS57: 9 | AT57: 292 | AU57: (22) | AV57: 146 | AW57: 37 | AX57: 583 | AY57: 9 | BA57: 0.25 | BB57: 25.00 | BD57: 25.00 | BE57: 0.00 | BF57: 100.00 | BG57: 0.00 | BH57: 25.00 | BJ57: 25.00 | BK57: 0.00 | BL57: 100.00 | BM57: 0.00 | BO57: 0.5 | BP57: 0.25 | BQ57: 292 | BR57: 147 | BS57: 146 | BT57: 263 | BU57: 583 | BV57: 66 | BW57: 292 | BX57: 147 | BY57: 146 | BZ57: 263 | CA57: 583 | CB57: 66 | CD57: 0.25 | CL57: 0.5 | CM57: 0.25 | CN57: 292 | CO57: 213 | CP57: 100 | CQ57: 313 | CR57: 146 | CS57: 447 | CT57: 583 | CU57: 137 | CV57: 100 | CW57: 200 | CX57: 146.67 | CY57: 466.67 | CZ57: 145.83 | DA57: 583.33 | DB57: 583.33 | DC57: 145.83 | DD57: 292 | DE57: 145.83 | DF57: 583.33 | DI57: 0.5 | DJ57: 0.25 | DK57: 292 | DL57: 213 | DM57: 100 | DN57: 313 | DO57: 146 | DP57: 547 | DQ57: 583 | DR57: 137 | DS57: 100 | DT57: 200 | DU57: 146.67 | DV57: 466.67 | DW57: 145.83 | DX57: 583.33 | DY57: 583.33 | DZ57: 145.83 | EA57: 292 | EB57: 145.83 | EC57: 583.33
W58: 0.6 | X58: 0.3 | Y58: 350 | Z58: 260 | AA58: 175 | AB58: 447 | AC58: 583 | AD58: 134 | AE58: 350 | AF58: 260 | AG58: 175 | AH58: 447 | AI58: 583 | AJ58: 134 | AL58: 0.6 | AM58: 0.3 | AN58: 350 | AO58: (10) | AP58: 175 | AQ58: 37 | AR58: 583 | AS58: 11 | AT58: 350 | AU58: (10) | AV58: 175 | AW58: 37 | AX58: 583 | AY58: 11 | BA58: 0.3 | BB58: 30.00 | BD58: 30.00 | BE58: 0.00 | BF58: 100.00 | BG58: 0.00 | BH58: 30.00 | BJ58: 30.00 | BK58: 0.00 | BL58: 100.00 | BM58: 0.00 | BO58: 0.6 | BP58: 0.3 | BQ58: 350 | BR58: 170 | BS58: 175 | BT58: 263 | BU58: 583 | BV58: 79 | BW58: 350 | BX58: 170 | BY58: 175 | BZ58: 263 | CA58: 583 | CB58: 79 | CD58: 0.3 | CL58: 0.6 | CM58: 0.3 | CN58: 350 | CO58: 260 | CP58: 100 | CQ58: 360 | CR58: 175 | CS58: 447 | CT58: 583 | CU58: 164 | CV58: 100 | CW58: 200 | CX58: 170.00 | CY58: 490.00 | CZ58: 175.00 | DA58: 583.33 | DB58: 583.33 | DC58: 175.00 | DD58: 350 | DE58: 175.00 | DF58: 583.33 | DI58: 0.6 | DJ58: 0.3 | DK58: 350 | DL58: 260 | DM58: 100 | DN58: 360 | DO58: 175 | DP58: 547 | DQ58: 583 | DR58: 164 | DS58: 100 | DT58: 200 | DU58: 170.00 | DV58: 490.00 | DW58: 175.00 | DX58: 583.33 | DY58: 583.33 | DZ58: 175.00 | EA58: 350 | EB58: 175.00 | EC58: 583.33
A59: AHORRO | H59: AHORRO | W59: 0.7 | X59: 0.35 | Y59: 408 | Z59: 307 | AA59: 204 | AB59: 447 | AC59: 583 | AD59: 156 | AE59: 408 | AF59: 307 | AG59: 204 | AH59: 447 | AI59: 583 | AJ59: 156 | AL59: 0.7 | AM59: 0.35 | AN59: 408 | AO59: 2 | AP59: 204 | AQ59: 37 | AR59: 583 | AS59: 13 | AT59: 408 | AU59: 2 | AV59: 204 | AW59: 37 | AX59: 583 | AY59: 13 | BA59: 0.35 | BB59: 35.00 | BD59: 35.00 | BE59: 0.00 | BF59: 100.00 | BG59: 0.00 | BH59: 35.00 | BJ59: 35.00 | BK59: 0.00 | BL59: 100.00 | BM59: 0.00 | BO59: 0.7 | BP59: 0.35 | BQ59: 408 | BR59: 193 | BS59: 204 | BT59: 263 | BU59: 583 | BV59: 92 | BW59: 408 | BX59: 193 | BY59: 204 | BZ59: 263 | CA59: 583 | CB59: 92 | CD59: 0.35 | CL59: 0.7 | CM59: 0.35 | CN59: 408 | CO59: 307 | CP59: 100 | CQ59: 407 | CR59: 204 | CS59: 447 | CT59: 583 | CU59: 191 | CV59: 100 | CW59: 200 | CX59: 193.33 | CY59: 513.33 | CZ59: 204.17 | DA59: 583.33 | DB59: 583.33 | DC59: 204.17 | DD59: 408 | DE59: 204.17 | DF59: 583.33 | DI59: 0.7 | DJ59: 0.35 | DK59: 408 | DL59: 307 | DM59: 100 | DN59: 407 | DO59: 204 | DP59: 547 | DQ59: 583 | DR59: 191 | DS59: 100 | DT59: 200 | DU59: 193.33 | DV59: 513.33 | DW59: 204.17 | DX59: 583.33 | DY59: 583.33 | DZ59: 204.17 | EA59: 408 | EB59: 204.17 | EC59: 583.33
A60: S | B60: s0 | C60: s1 | D60: Y | E60: T | H60: S | I60: s0 | J60: s1 | K60: Y | L60: T | W60: 0.8 | X60: 0.4 | Y60: 467 | Z60: 353 | AA60: 233 | AB60: 447 | AC60: 583 | AD60: 179 | AE60: 467 | AF60: 353 | AG60: 233 | AH60: 447 | AI60: 583 | AJ60: 179 | AL60: 0.8 | AM60: 0.4 | AN60: 467 | AO60: 13 | AP60: 233 | AQ60: 37 | AR60: 583 | AS60: 15 | AT60: 467 | AU60: 13 | AV60: 233 | AW60: 37 | AX60: 583 | AY60: 15 | BA60: 0.4 | BB60: 40.00 | BD60: 40.00 | BE60: 0.00 | BF60: 100.00 | BG60: 0.00 | BH60: 40.00 | BJ60: 40.00 | BK60: 0.00 | BL60: 100.00 | BM60: 0.00 | BO60: 0.8 | BP60: 0.4 | BQ60: 467 | BR60: 217 | BS60: 233 | BT60: 263 | BU60: 583 | BV60: 105 | BW60: 467 | BX60: 217 | BY60: 233 | BZ60: 263 | CA60: 583 | CB60: 105 | CD60: 0.4 | CL60: 0.8 | CM60: 0.4 | CN60: 467 | CO60: 353 | CP60: 100 | CQ60: 453 | CR60: 233 | CS60: 447 | CT60: 583 | CU60: 219 | CV60: 100 | CW60: 200 | CX60: 216.67 | CY60: 536.67 | CZ60: 233.33 | DA60: 583.33 | DB60: 583.33 | DC60: 233.33 | DD60: 467 | DE60: 233.33 | DF60: 583.33 | DI60: 0.8 | DJ60: 0.4 | DK60: 467 | DL60: 353 | DM60: 100 | DN60: 453 | DO60: 233 | DP60: 547 | DQ60: 583 | DR60: 219 | DS60: 100 | DT60: 200 | DU60: 216.67 | DV60: 536.67 | DW60: 233.33 | DX60: 583.33 | DY60: 583.33 | DZ60: 233.33 | EA60: 467 | EB60: 233.33 | EC60: 583.33
A61: =B61+(C61*(D61-E61)) -> 36.7 | B61: =B57*-1 -> -60.00 | C61: =(1-C57) -> 0.2 | D61: =B53 -> 583.33 | E61: =E69 -> 100.00 | H61: =I61+(J61*(K61-L61)) -> 36.7 | I61: =B61 -> -60.00 | J61: =C61 -> 0.20 | K61: =I53 -> 583.33 | L61: =L73 -> 100.00 | W61: 0.9 | X61: 0.45 | Y61: 525 | Z61: 400 | AA61: 263 | AB61: 447 | AC61: 583 | AD61: 201 | AE61: 525 | AF61: 400 | AG61: 263 | AH61: 447 | AI61: 583 | AJ61: 201 | AL61: 0.9 | AM61: 0.45 | AN61: 525 | AO61: 25 | AP61: 263 | AQ61: 37 | AR61: 583 | AS61: 17 | AT61: 525 | AU61: 25 | AV61: 263 | AW61: 37 | AX61: 583 | AY61: 17 | BA61: 0.45 | BB61: 45.00 | BD61: 45.00 | BE61: 0.00 | BF61: 100.00 | BG61: 0.00 | BH61: 45.00 | BJ61: 45.00 | BK61: 0.00 | BL61: 100.00 | BM61: 0.00 | BO61: 0.9 | BP61: 0.45 | BQ61: 525 | BR61: 240 | BS61: 263 | BT61: 263 | BU61: 583 | BV61: 119 | BW61: 525 | BX61: 240 | BY61: 263 | BZ61: 263 | CA61: 583 | CB61: 119 | CD61: 0.45 | CL61: 0.9 | CM61: 0.45 | CN61: 525 | CO61: 400 | CP61: 100 | CQ61: 500 | CR61: 263 | CS61: 447 | CT61: 583 | CU61: 246 | CV61: 100 | CW61: 200 | CX61: 240.00 | CY61: 560.00 | CZ61: 262.50 | DA61: 583.33 | DB61: 583.33 | DC61: 262.50 | DD61: 525 | DE61: 262.50 | DF61: 583.33 | DI61: 0.9 | DJ61: 0.45 | DK61: 525 | DL61: 400 | DM61: 100 | DN61: 500 | DO61: 263 | DP61: 547 | DQ61: 583 | DR61: 246 | DS61: 100 | DT61: 200 | DU61: 240.00 | DV61: 560.00 | DW61: 262.50 | DX61: 583.33 | DY61: 583.33 | DZ61: 262.50 | EA61: 525 | EB61: 262.50 | EC61: 583.33
W62: 1 | X62: 0.5 | Y62: 583 | Z62: 447 | AA62: 292 | AB62: 447 | AC62: 583 | AD62: 223 | AE62: 583 | AF62: 447 | AG62: 292 | AH62: 447 | AI62: 583 | AJ62: 223 | AL62: 1 | AM62: 0.5 | AN62: 583 | AO62: 37 | AP62: 292 | AQ62: 37 | AR62: 583 | AS62: 18 | AT62: 583 | AU62: 37 | AV62: 292 | AW62: 37 | AX62: 583 | AY62: 18 | BA62: 0.5 | BB62: 50.00 | BD62: 50.00 | BE62: 0.00 | BF62: 100.00 | BG62: 0.00 | BH62: 50.00 | BJ62: 50.00 | BK62: 0.00 | BL62: 100.00 | BM62: 0.00 | BO62: 1 | BP62: 0.5 | BQ62: 583 | BR62: 263 | BS62: 292 | BT62: 263 | BU62: 583 | BV62: 132 | BW62: 583 | BX62: 263 | BY62: 292 | BZ62: 263 | CA62: 583 | CB62: 132 | CD62: 0.5 | CL62: 1 | CM62: 0.5 | CN62: 583 | CO62: 447 | CP62: 100 | CQ62: 547 | CR62: 292 | CS62: 447 | CT62: 583 | CU62: 273 | CV62: 100 | CW62: 200 | CX62: 263.33 | CY62: 583.33 | CZ62: 291.67 | DA62: 583.33 | DB62: 583.33 | DC62: 291.67 | DD62: 583 | DE62: 291.67 | DF62: 583.33 | DI62: 1 | DJ62: 0.5 | DK62: 583 | DL62: 447 | DM62: 100 | DN62: 547 | DO62: 292 | DP62: 547 | DQ62: 583 | DR62: 273 | DS62: 100 | DT62: 200 | DU62: 263.33 | DV62: 583.33 | DW62: 291.67 | DX62: 583.33 | DY62: 583.33 | DZ62: 291.67 | EA62: 583 | EB62: 291.67 | EC62: 583.33
A63: INVERSIÓN | H63: INVERSIÓN | W63: 1.1 | X63: 0.55 | Y63: 642 | Z63: 493 | AA63: 321 | AB63: 447 | AC63: 583 | AD63: 246 | AE63: 642 | AF63: 493 | AG63: 321 | AH63: 447 | AI63: 583 | AJ63: 246 | AL63: 1.1 | AM63: 0.55 | AN63: 642 | AO63: 48 | AP63: 321 | AQ63: 37 | AR63: 583 | AS63: 20 | AT63: 642 | AU63: 48 | AV63: 321 | AW63: 37 | AX63: 583 | AY63: 20 | BA63: 0.55 | BB63: 55.00 | BD63: 55.00 | BE63: 0.00 | BF63: 100.00 | BG63: 0.00 | BH63: 55.00 | BJ63: 55.00 | BK63: 0.00 | BL63: 100.00 | BM63: 0.00 | BO63: 1.1 | BP63: 0.55 | BQ63: 642 | BR63: 287 | BS63: 321 | BT63: 263 | BU63: 583 | BV63: 145 | BW63: 642 | BX63: 287 | BY63: 321 | BZ63: 263 | CA63: 583 | CB63: 145 | CD63: 0.55 | CL63: 1.1 | CM63: 0.55 | CN63: 642 | CO63: 493 | CP63: 100 | CQ63: 593 | CR63: 321 | CS63: 447 | CT63: 583 | CU63: 301 | CV63: 100 | CW63: 200 | CX63: 286.67 | CY63: 606.67 | CZ63: 320.83 | DA63: 583.33 | DB63: 583.33 | DC63: 320.83 | DD63: 642 | DE63: 320.83 | DF63: 583.33 | DI63: 1.1 | DJ63: 0.55 | DK63: 642 | DL63: 493 | DM63: 100 | DN63: 593 | DO63: 321 | DP63: 547 | DQ63: 583 | DR63: 301 | DS63: 100 | DT63: 200 | DU63: 286.67 | DV63: 606.67 | DW63: 320.83 | DX63: 583.33 | DY63: 583.33 | DZ63: 320.83 | EA63: 642 | EB63: 320.83 | EC63: 583.33
A64: I | B64: I0 | C64: i1 | D64: r* | E64: i2 | F64: Emk0 | H64: I | I64: i0 | J64: i1 | K64: r* | L64: i2 | M64: Emk0 | W64: 1.2 | X64: 0.6 | Y64: 700 | Z64: 540 | AA64: 350 | AB64: 447 | AC64: 583 | AD64: 268 | AE64: 700 | AF64: 540 | AG64: 350 | AH64: 447 | AI64: 583 | AJ64: 268 | AL64: 1.2 | AM64: 0.6 | AN64: 700 | AO64: 60 | AP64: 350 | AQ64: 37 | AR64: 583 | AS64: 22 | AT64: 700 | AU64: 60 | AV64: 350 | AW64: 37 | AX64: 583 | AY64: 22 | BA64: 0.6 | BB64: 60.00 | BD64: 60.00 | BE64: 0.00 | BF64: 100.00 | BG64: 0.00 | BH64: 60.00 | BJ64: 60.00 | BK64: 0.00 | BL64: 100.00 | BM64: 0.00 | BO64: 1.2 | BP64: 0.6 | BQ64: 700 | BR64: 310 | BS64: 350 | BT64: 263 | BU64: 583 | BV64: 158 | BW64: 700 | BX64: 310 | BY64: 350 | BZ64: 263 | CA64: 583 | CB64: 158 | CD64: 0.6 | CL64: 1.2 | CM64: 0.6 | CN64: 700 | CO64: 540 | CP64: 100 | CQ64: 640 | CR64: 350 | CS64: 447 | CT64: 583 | CU64: 328 | CV64: 100 | CW64: 200 | CX64: 310.00 | CY64: 630.00 | CZ64: 350.00 | DA64: 583.33 | DB64: 583.33 | DC64: 350.00 | DD64: 700 | DE64: 350.00 | DF64: 583.33 | DI64: 1.2 | DJ64: 0.6 | DK64: 700 | DL64: 540 | DM64: 100 | DN64: 640 | DO64: 350 | DP64: 547 | DQ64: 583 | DR64: 328 | DS64: 100 | DT64: 200 | DU64: 310.00 | DV64: 630.00 | DW64: 350.00 | DX64: 583.33 | DY64: 583.33 | DZ64: 350.00 | EA64: 700 | EB64: 350.00 | EC64: 583.33
A65: =B65 -> 100.0 | B65: =Sistema_Gráficas!B14 -> 100.00 | C65: =Sistema_Gráficas!C14 -> 0.00 | D65: =Sistema_Gráficas!D14 -> 0% | E65: =Sistema_Gráficas!E14 -> 0.00 | F65: =Sistema_Gráficas!F14 -> 0% | H65: =I65 -> 100.0 | I65: =S69 -> 100.00 | J65: =C65 -> 0.00 | K65: =D65 -> 0% | L65: =E65 -> 0.00 | M65: =F65 -> 0% | W65: 1.3 | X65: 0.65 | Y65: 758 | Z65: 587 | AA65: 379 | AB65: 447 | AC65: 583 | AD65: 290 | AE65: 758 | AF65: 587 | AG65: 379 | AH65: 447 | AI65: 583 | AJ65: 290 | AL65: 1.3 | AM65: 0.65 | AN65: 758 | AO65: 72 | AP65: 379 | AQ65: 37 | AR65: 583 | AS65: 24 | AT65: 758 | AU65: 72 | AV65: 379 | AW65: 37 | AX65: 583 | AY65: 24 | BA65: 0.65 | BB65: 65.00 | BD65: 65.00 | BE65: 0.00 | BF65: 100.00 | BG65: 0.00 | BH65: 65.00 | BJ65: 65.00 | BK65: 0.00 | BL65: 100.00 | BM65: 0.00 | BO65: 1.3 | BP65: 0.65 | BQ65: 758 | BR65: 333 | BS65: 379 | BT65: 263 | BU65: 583 | BV65: 171 | BW65: 758 | BX65: 333 | BY65: 379 | BZ65: 263 | CA65: 583 | CB65: 171 | CD65: 0.65 | CL65: 1.3 | CM65: 0.65 | CN65: 758 | CO65: 587 | CP65: 100 | CQ65: 687 | CR65: 379 | CS65: 447 | CT65: 583 | CU65: 355 | CV65: 100 | CW65: 200 | CX65: 333.33 | CY65: 653.33 | CZ65: 379.17 | DA65: 583.33 | DB65: 583.33 | DC65: 379.17 | DD65: 758 | DE65: 379.17 | DF65: 583.33 | DI65: 1.3 | DJ65: 0.65 | DK65: 758 | DL65: 587 | DM65: 100 | DN65: 687 | DO65: 379 | DP65: 547 | DQ65: 583 | DR65: 355 | DS65: 100 | DT65: 200 | DU65: 333.33 | DV65: 653.33 | DW65: 379.17 | DX65: 583.33 | DY65: 583.33 | DZ65: 379.17 | EA65: 758 | EB65: 379.17 | EC65: 583.33
W66: 1.4 | X66: 0.7 | Y66: 817 | Z66: 633 | AA66: 408 | AB66: 447 | AC66: 583 | AD66: 313 | AE66: 817 | AF66: 633 | AG66: 408 | AH66: 447 | AI66: 583 | AJ66: 313 | AL66: 1.4 | AM66: 0.7 | AN66: 817 | AO66: 83 | AP66: 408 | AQ66: 37 | AR66: 583 | AS66: 26 | AT66: 817 | AU66: 83 | AV66: 408 | AW66: 37 | AX66: 583 | AY66: 26 | BA66: 0.7 | BB66: 70.00 | BD66: 70.00 | BE66: 0.00 | BF66: 100.00 | BG66: 0.00 | BH66: 70.00 | BJ66: 70.00 | BK66: 0.00 | BL66: 100.00 | BM66: 0.00 | BO66: 1.4 | BP66: 0.7 | BQ66: 817 | BR66: 357 | BS66: 408 | BT66: 263 | BU66: 583 | BV66: 184 | BW66: 817 | BX66: 357 | BY66: 408 | BZ66: 263 | CA66: 583 | CB66: 184 | CD66: 0.7 | CL66: 1.4 | CM66: 0.7 | CN66: 817 | CO66: 633 | CP66: 100 | CQ66: 733 | CR66: 408 | CS66: 447 | CT66: 583 | CU66: 383 | CV66: 100 | CW66: 200 | CX66: 356.67 | CY66: 676.67 | CZ66: 408.33 | DA66: 583.33 | DB66: 583.33 | DC66: 408.33 | DD66: 817 | DE66: 408.33 | DF66: 583.33 | DI66: 1.4 | DJ66: 0.7 | DK66: 817 | DL66: 633 | DM66: 100 | DN66: 733 | DO66: 408 | DP66: 547 | DQ66: 583 | DR66: 383 | DS66: 100 | DT66: 200 | DU66: 356.67 | DV66: 676.67 | DW66: 408.33 | DX66: 583.33 | DY66: 583.33 | DZ66: 408.33 | EA66: 817 | EB66: 408.33 | EC66: 583.33
A67: GASTO DEL GOBIERNO | D67: IMPUESTOS | H67: DEMANDA DE DINERO | U67: =S69-B65 -> 0 | V67: =U67/B65 -> 0 | W67: 1.5 | X67: 0.75 | Y67: 875 | Z67: 680 | AA67: 438 | AB67: 447 | AC67: 583 | AD67: 335 | AE67: 875 | AF67: 680 | AG67: 438 | AH67: 447 | AI67: 583 | AJ67: 335 | AL67: 1.5 | AM67: 0.75 | AN67: 875 | AO67: 95 | AP67: 438 | AQ67: 37 | AR67: 583 | AS67: 28 | AT67: 875 | AU67: 95 | AV67: 438 | AW67: 37 | AX67: 583 | AY67: 28 | BA67: 0.75 | BB67: 75.00 | BD67: 75.00 | BE67: 0.00 | BF67: 100.00 | BG67: 0.00 | BH67: 75.00 | BJ67: 75.00 | BK67: 0.00 | BL67: 100.00 | BM67: 0.00 | BO67: 1.5 | BP67: 0.75 | BQ67: 875 | BR67: 380 | BS67: 438 | BT67: 263 | BU67: 583 | BV67: 198 | BW67: 875 | BX67: 380 | BY67: 438 | BZ67: 263 | CA67: 583 | CB67: 198 | CD67: 0.75 | CL67: 1.5 | CM67: 0.75 | CN67: 875 | CO67: 680 | CP67: 100 | CQ67: 780 | CR67: 438 | CS67: 447 | CT67: 583 | CU67: 410 | CV67: 100 | CW67: 200 | CX67: 380.00 | CY67: 700.00 | CZ67: 437.50 | DA67: 583.33 | DB67: 583.33 | DC67: 437.50 | DD67: 875 | DE67: 437.50 | DF67: 583.33 | DI67: 1.5 | DJ67: 0.75 | DK67: 875 | DL67: 680 | DM67: 100 | DN67: 780 | DO67: 438 | DP67: 547 | DQ67: 583 | DR67: 410 | DS67: 100 | DT67: 200 | DU67: 380.00 | DV67: 700.00 | DW67: 437.50 | DX67: 583.33 | DY67: 583.33 | DZ67: 437.50 | EA67: 875 | EB67: 437.50 | EC67: 583.33
A68: G | B68: g0 | D68: T | E68: T0 | H68: MD | I68: m0 | J68: m1 | K68: Y | L68: m2 | M68: r | Q68: G | R68: T | S68: Iota 0 | W68: 1.6 | X68: 0.8 | Y68: 933 | Z68: 727 | AA68: 467 | AB68: 447 | AC68: 583 | AD68: 357 | AE68: 933 | AF68: 727 | AG68: 467 | AH68: 447 | AI68: 583 | AJ68: 357 | AL68: 1.6 | AM68: 0.8 | AN68: 933 | AO68: 107 | AP68: 467 | AQ68: 37 | AR68: 583 | AS68: 29 | AT68: 933 | AU68: 107 | AV68: 467 | AW68: 37 | AX68: 583 | AY68: 29 | BA68: 0.8 | BB68: 80.00 | BD68: 80.00 | BE68: 0.00 | BF68: 100.00 | BG68: 0.00 | BH68: 80.00 | BJ68: 80.00 | BK68: 0.00 | BL68: 100.00 | BM68: 0.00 | BO68: 1.6 | BP68: 0.8 | BQ68: 933 | BR68: 403 | BS68: 467 | BT68: 263 | BU68: 583 | BV68: 211 | BW68: 933 | BX68: 403 | BY68: 467 | BZ68: 263 | CA68: 583 | CB68: 211 | CD68: 0.8 | CL68: 1.6 | CM68: 0.8 | CN68: 933 | CO68: 727 | CP68: 100 | CQ68: 827 | CR68: 467 | CS68: 447 | CT68: 583 | CU68: 437 | CV68: 100 | CW68: 200 | CX68: 403.33 | CY68: 723.33 | CZ68: 466.67 | DA68: 583.33 | DB68: 583.33 | DC68: 466.67 | DD68: 933 | DE68: 466.67 | DF68: 583.33 | DI68: 1.6 | DJ68: 0.8 | DK68: 933 | DL68: 727 | DM68: 100 | DN68: 827 | DO68: 467 | DP68: 547 | DQ68: 583 | DR68: 437 | DS68: 100 | DT68: 200 | DU68: 403.33 | DV68: 723.33 | DW68: 466.67 | DX68: 583.33 | DY68: 583.33 | DZ68: 466.67 | EA68: 933 | EB68: 466.67 | EC68: 583.33
A69: =B69 -> 100.0 | B69: =Sistema_Gráficas!B17 -> 100.00 | D69: =E69 -> 100.0 | E69: =Sistema_Gráficas!E17 -> 100.00 | H69: =I69+(J69*K69)+(L69*M69) ->  | I69: =B85 ->  | J69: =C85 ->  | K69: =I53 -> 583.33 | L69: =E85 ->  | M69: =(I73-I69-(J69*K69))/L69 ->  | Q69: =B69+(B69*Q70) -> 100.00 | R69: =E69+(E69*R70) -> 100.00 | S69: =B65+(B65*S70) -> 100.00 | W69: 1.7 | X69: 0.85 | Y69: 992 | Z69: 773 | AA69: 496 | AB69: 447 | AC69: 583 | AD69: 380 | AE69: 992 | AF69: 773 | AG69: 496 | AH69: 447 | AI69: 583 | AJ69: 380 | AL69: 1.7 | AM69: 0.85 | AN69: 992 | AO69: 118 | AP69: 496 | AQ69: 37 | AR69: 583 | AS69: 31 | AT69: 992 | AU69: 118 | AV69: 496 | AW69: 37 | AX69: 583 | AY69: 31 | BA69: 0.85 | BB69: 85.00 | BD69: 85.00 | BE69: 0.00 | BF69: 100.00 | BG69: 0.00 | BH69: 85.00 | BJ69: 85.00 | BK69: 0.00 | BL69: 100.00 | BM69: 0.00 | BO69: 1.7 | BP69: 0.85 | BQ69: 992 | BR69: 427 | BS69: 496 | BT69: 263 | BU69: 583 | BV69: 224 | BW69: 992 | BX69: 427 | BY69: 496 | BZ69: 263 | CA69: 583 | CB69: 224 | CD69: 0.85 | CL69: 1.7 | CM69: 0.85 | CN69: 992 | CO69: 773 | CP69: 100 | CQ69: 873 | CR69: 496 | CS69: 447 | CT69: 583 | CU69: 465 | CV69: 100 | CW69: 200 | CX69: 426.67 | CY69: 746.67 | CZ69: 495.83 | DA69: 583.33 | DB69: 583.33 | DC69: 495.83 | DD69: 992 | DE69: 495.83 | DF69: 583.33 | DI69: 1.7 | DJ69: 0.85 | DK69: 992 | DL69: 773 | DM69: 100 | DN69: 873 | DO69: 496 | DP69: 547 | DQ69: 583 | DR69: 465 | DS69: 100 | DT69: 200 | DU69: 426.67 | DV69: 746.67 | DW69: 495.83 | DX69: 583.33 | DY69: 583.33 | DZ69: 495.83 | EA69: 992 | EB69: 495.83 | EC69: 583.33
Q70: =Sistema_Gráficas!N4 -> 0.00% | R70: =Sistema_Gráficas!O4 -> 0.00% | S70: =Sistema_Gráficas!P4 -> 0.00% | U70: =U67*-1/A69 -> 0.000% | V70: =U67/(C57*D69) -> 0.000% | W70: 1.8 | X70: 0.9 | Y70: 1,050 | Z70: 820 | AA70: 525 | AB70: 447 | AC70: 583 | AD70: 402 | AE70: 1,050 | AF70: 820 | AG70: 525 | AH70: 447 | AI70: 583 | AJ70: 402 | AL70: 1.8 | AM70: 0.9 | AN70: 1,050 | AO70: 130 | AP70: 525 | AQ70: 37 | AR70: 583 | AS70: 33 | AT70: 1,050 | AU70: 130 | AV70: 525 | AW70: 37 | AX70: 583 | AY70: 33 | BA70: 0.9 | BB70: 90.00 | BD70: 90.00 | BE70: 0.00 | BF70: 100.00 | BG70: 0.00 | BH70: 90.00 | BJ70: 90.00 | BK70: 0.00 | BL70: 100.00 | BM70: 0.00 | BO70: 1.8 | BP70: 0.9 | BQ70: 1,050 | BR70: 450 | BS70: 525 | BT70: 263 | BU70: 583 | BV70: 237 | BW70: 1,050 | BX70: 450 | BY70: 525 | BZ70: 263 | CA70: 583 | CB70: 237 | CD70: 0.9 | CL70: 1.8 | CM70: 0.9 | CN70: 1,050 | CO70: 820 | CP70: 100 | CQ70: 920 | CR70: 525 | CS70: 447 | CT70: 583 | CU70: 492 | CV70: 100 | CW70: 200 | CX70: 450.00 | CY70: 770.00 | CZ70: 525.00 | DA70: 583.33 | DB70: 583.33 | DC70: 525.00 | DD70: 1,050 | DE70: 525.00 | DF70: 583.33 | DI70: 1.8 | DJ70: 0.9 | DK70: 1,050 | DL70: 820 | DM70: 100 | DN70: 920 | DO70: 525 | DP70: 547 | DQ70: 583 | DR70: 492 | DS70: 100 | DT70: 200 | DU70: 450.00 | DV70: 770.00 | DW70: 525.00 | DX70: 583.33 | DY70: 583.33 | DZ70: 525.00 | EA70: 1,050 | EB70: 525.00 | EC70: 583.33
A71: OFERTA DE DINERO | H71: OFERTA DE DINERO | K71: IMPUESTOS | W71: 1.9 | X71: 0.95 | Y71: 1,108 | Z71: 867 | AA71: 554 | AB71: 447 | AC71: 583 | AD71: 424 | AE71: 1,108 | AF71: 867 | AG71: 554 | AH71: 447 | AI71: 583 | AJ71: 424 | AL71: 1.9 | AM71: 0.95 | AN71: 1,108 | AO71: 142 | AP71: 554 | AQ71: 37 | AR71: 583 | AS71: 35 | AT71: 1,108 | AU71: 142 | AV71: 554 | AW71: 37 | AX71: 583 | AY71: 35 | BA71: 0.95 | BB71: 95.00 | BD71: 95.00 | BE71: 0.00 | BF71: 100.00 | BG71: 0.00 | BH71: 95.00 | BJ71: 95.00 | BK71: 0.00 | BL71: 100.00 | BM71: 0.00 | BO71: 1.9 | BP71: 0.95 | BQ71: 1,108 | BR71: 473 | BS71: 554 | BT71: 263 | BU71: 583 | BV71: 250 | BW71: 1,108 | BX71: 473 | BY71: 554 | BZ71: 263 | CA71: 583 | CB71: 250 | CD71: 0.95 | CL71: 1.9 | CM71: 0.95 | CN71: 1,108 | CO71: 867 | CP71: 100 | CQ71: 967 | CR71: 554 | CS71: 447 | CT71: 583 | CU71: 519 | CV71: 100 | CW71: 200 | CX71: 473.33 | CY71: 793.33 | CZ71: 554.17 | DA71: 583.33 | DB71: 583.33 | DC71: 554.17 | DD71: 1,108 | DE71: 554.17 | DF71: 583.33 | DI71: 1.9 | DJ71: 0.95 | DK71: 1,108 | DL71: 867 | DM71: 100 | DN71: 967 | DO71: 554 | DP71: 547 | DQ71: 583 | DR71: 519 | DS71: 100 | DT71: 200 | DU71: 473.33 | DV71: 793.33 | DW71: 554.17 | DX71: 583.33 | DY71: 583.33 | DZ71: =DJ71*$DM$81 -> 554.17 | EA71: 1,108 | EB71: =DJ71*$DM$83 -> 554.17 | EC71: 583.33
A72: Ms | B72: Ms | H72: Ms | I72: Ms | K72: T | L72: T0 | Q72: FUNCIÓN ORIGINAL | R72: CHOQUE | S72: VARIACIÓN ABS | T72: VARIACIÓN REL | W72: 2 | X72: 1 | Y72: 1,167 | Z72: 913 | AA72: 583 | AB72: 447 | AC72: 583 | AD72: 447 | AE72: 1,167 | AF72: 913 | AG72: 583 | AH72: 447 | AI72: 583 | AJ72: 447 | AL72: 2 | AM72: 1 | AN72: 1,167 | AO72: 153 | AP72: 583 | AQ72: 37 | AR72: 583 | AS72: 37 | AT72: 1,167 | AU72: 153 | AV72: 583 | AW72: 37 | AX72: 583 | AY72: 37 | BA72: 1 | BB72: 100.00 | BD72: 100.00 | BE72: 0.00 | BF72: 100.00 | BG72: 0.00 | BH72: 100.00 | BJ72: 100.00 | BK72: 0.00 | BL72: 100.00 | BM72: 0.00 | BO72: 2 | BP72: 1 | BQ72: 1,167 | BR72: 497 | BS72: 583 | BT72: 263 | BU72: 583 | BV72: 263 | BW72: 1,167 | BX72: 497 | BY72: 583 | BZ72: 263 | CA72: 583 | CB72: 263 | CD72: 1 | CL72: 2 | CM72: 1 | CN72: 1,167 | CO72: 913 | CP72: 100 | CQ72: 1,013 | CR72: 583 | CS72: 447 | CT72: 583 | CU72: 547 | CV72: 100 | CW72: 200 | CX72: 496.67 | CY72: 816.67 | DA72: 583.33 | DB72: 583.33 | DC72: 583.33 | DD72: 1,167 | DE72: 583.33 | DF72: 583.33 | DI72: 2 | DJ72: 1 | DK72: 1,167 | DL72: 913 | DM72: 100 | DN72: 1,013 | DO72: 583 | DP72: 547 | DQ72: 583 | DR72: 547 | DS72: 100 | DT72: 200 | DU72: 496.67 | DV72: 816.67 | DW72: 583.33 | DX72: 583.33 | DY72: 583.33 | DZ72: =DJ72*$DM$81 -> 583.33 | EA72: 1,167 | EB72: =DJ72*$DM$83 -> 583.33 | EC72: 583.33
A73: =B73 ->  | B73: =Sistema_Gráficas!#REF! ->  | H73: =I73 ->  | I73: =B73 ->  | K73: =L73 -> 100.0 | L73: =R69 -> 100.00
P74: Y | Q74: =B53 -> 583.33 | R74: =I53 -> 583.33 | S74: =R74-Q74 -> 0 | T74: =(R74/Q74)-1 -> 0.00% | BA74: COTA | BB74: =BB76+(BB79*BB80) -> 100.00 | BH74: =BC76+(BC79*BC80) -> 100.00 | CE74: COTA | CF74: =CF76+(CF77*CF78) ->  | CL74: Y | CM74: =(1/(1-CM78+CF92))*(CM77-(CM78*CM79)+CM82+CM85+CM88-CF91) -> 583.33 | CO74: C | CP74: =CM77+(CM78*(CM74-CM79)) -> 446.67 | DI74: Y | DJ74: =I53 -> 583.33 | DL74: C | DM74: =DJ77+(DJ78*(DJ74-DJ79)) -> 446.67
D75: EXPORTACIONES | H75: GASTO DEL GOBIERNO | K75: EXPORTACIONES | P75: C | Q75: =A57 -> 446.67 | R75: =H57 -> 446.67 | S75: =R75-Q75 -> 0 | T75: =(R75/Q75)-1 -> 0.00% | CO75: I | CP75: =CM82 -> 100.00 | DL75: I | DM75: =DJ82 -> 100.00
D76: X | E76: x0 | H76: G | I76: g0 | K76: X | L76: x0 | P76: S | Q76: =A61 -> 36.67 | R76: =H61 -> 36.67 | S76: 0 | T76: =(R76/Q76)-1 -> 0.00% | W76: b0 | X76: =B57 -> 60.00 | Y76: =I57 -> 60.00 | AL76: s0 | AM76: =B61 -> -60.00 | AN76: =I61 -> -60.00 | BA76: i0 | BB76: =B65 -> 100.00 | BC76: =I65 -> 100.00 | BO76: m0 | BP76: =I81 -> 30.00 | BQ76: =I81 -> 30.00 | CE76: m0 | CF76: =B85 ->  | CL76: FUNCIÓN CONSUMO | CO76: G | CP76: =CM85 -> 100.00 | DI76: FUNCIÓN CONSUMO | DL76: G | DM76: =DJ85 -> 100.00
D77: =E77 -> 200.0 | E77: =Sistema_Gráficas!B20 -> 200.00 | H77: =I77 -> 100.0 | I77: =Q69 -> 100.00 | K77: =L77 -> 200.0 | L77: =E77 -> 200.00 | P77: I | Q77: =A65 -> 100.00 | R77: =H65 -> 100.00 | S77: 0 | T77: =(R77/Q77)-1 -> 0.00% | W77: b1 | X77: =C57 -> 0.80 | Y77: =J57 -> 0.80 | AL77: s1 | AM77: =C61 -> 0.20 | AN77: =J61 -> 0.20 | BA77: i1 | BB77: =C65 -> 0.00 | BC77: =J65 -> 0.00 | BO77: m1 | BP77: =C81 -> 0.40 | BQ77: =C81 -> 0.40 | CE77: m1 | CF77: =C85 ->  | CL77: b0 | CM77: =B57 -> 60.00 | CO77: X | CP77: =CM88 -> 200.00 | DI77: b0 | DJ77: =I57 -> 60.00 | DL77: X | DM77: =DJ88 -> 200.00
P78: r | Q78: =D65 -> 0 | R78: =K65 -> 0 | S78: 0 | W78: Y | X78: =D57 -> 583.33 | Y78: =K57 -> 583.33 | AL78: Y | AM78: =D61 -> 583.33 | AN78: =K61 -> 583.33 | BA78: r | BB78: =D65 -> 0.00 | BC78: =K65 -> 0.00 | BO78: Y | BP78: =D81 -> 583.33 | BQ78: =I53 -> 583.33 | CE78: Y | CF78: =D85 -> 583.33 | CL78: b1 | CM78: =C57 -> 0.80 | CO78: M | CP78: =CM91+(CM92*CM74) -> 263.33 | DI78: b1 | DJ78: =J57 -> 0.80 | DL78: M | DM78: =DJ91+(DJ92*DJ74) -> 263.33
A79: IMPORTACIONES | H79: IMPORTACIONES | P79: MD | Q79: =A85 ->  | R79: =H69 ->  | T79: =(R79/Q79)-1 ->  | W79: t0 | X79: =E57 -> 100.00 | Y79: =L57 -> 100.00 | AL79: t0 | AM79: =E61 -> 100.00 | AN79: =L61 -> 100.00 | BA79: i2 | BB79: =E65 -> 0.00 | BC79: =L65 -> 0.00 | CE79: m2 | CF79: =E85 ->  | CL79: t0 | CM79: =E69 -> 100.00 | DI79: t0 | DJ79: =L73 -> 100.00
A80: M | B80: m0 | C80: m1 | D80: Y | F80: SBC | H80: M | I80: m0 | J80: m1 | K80: Y | M80: SBC | P80: Ms | Q80: =A73 ->  | R80: =H73 ->  | BA80: Emk0 | BB80: =F65 -> 0% | BC80: =M65 -> 0% | CO80: C+I | CP80: =(CM77+(CM78*(CM74-CM79)))+CP75 -> 546.67 | DL80: C+I | DM80: =(DJ77+(DJ78*(DJ74-DJ79)))+DM75 -> 546.67
A81: =B81+(C81*D81) -> 263.3 | B81: =Sistema_Gráficas!B23 -> 30.00 | C81: =Sistema_Gráficas!C23 -> 0.40 | D81: =B53 -> 583.33 | F81: =D77-A81 -> (63.3) | H81: =I81+(J81*K81) -> 263.3 | I81: =B81 -> 30.00 | J81: =C81 -> 0.40 | K81: =I53 -> 583.33 | M81: =K77-H81 -> (63.3) | P81: G | Q81: =A69 -> 100.00 | R81: =H77 -> 100.00 | S81: 0 | T81: 0.00% | CE81: FUNCIÓN DE OFERTA DE DINERO | CL81: INVERSIÓN | CO81: C+I+G+X-M | CP81: =(CM77+(CM78*(CM74-CM79)))+CM82+CM85+CM88-(CM91+(CM92*CM74)) -> 583.33 | DI81: INVERSIÓN | DL81: C+I+G+X-M | DM81: =(DJ77+(DJ78*(DJ74-DJ79)))+DJ82+DJ85+DJ88-(DJ91+(DJ92*DJ74)) -> 583.33
P82: x | Q82: =D77 -> 200.00 | R82: =K77 -> 200.00 | S82: 0 | T82: 0.00% | CE82: Ms | CF82: =B73 ->  | CL82: I | CM82: =A65 -> 100.00 | DI82: I | DJ82: =H65 -> 100.00
A83: DEMANDA DE DINERO | P83: Q | Q83: =A81 -> 263.33 | R83: =H81 -> 263.33 | S83: 0 | T83: 0.00% | CO83: y | CP83: =(CM77-(CM78*CM79)+CM82+CM88-CM91+CM85)/(1-CM78+CM92) -> 583.33 | DL83: y | DM83: =(DJ77-(DJ78*DJ79)+DJ82+DJ88-DJ91+DJ85)/(1-DJ78+DJ92) -> 583.33
A84: MD | B84: m0 | C84: m1 | D84: Y | E84: m2 | F84: r | P84: SBC | Q84: =F81 -> -63.33 | R84: =M81 -> -63.33 | S84: 0 | T84: 0.00% | W84: C1 | X84: =X76+(X77*(X78-X79)) -> 446.67 | Y84: =Y76+(Y77*(Y78-Y79)) -> 446.67 | AL84: S1 | AM84: =AM76+(AM77*(AM78-AM79)) -> 36.67 | AN84: =AN76+(AN77*(AN78-AN79)) -> 36.67 | BO84: M1 | BP84: =BP76+(BP77*BP78) -> 263.33 | BQ84: =BQ76+(BQ77*BQ78) -> 263.33 | CL84: GOBIERNO | CO84: da | CP84: =CM77+(CM78*(CP83-CM79))+CM82+CM88-(CM91+(CM92*CP83))+CM85 -> 583.33 | DI84: GOBIERNO | DL84: da | DM84: =DJ77+(DJ78*(DM83-DJ79))+DJ82+DJ88-(DJ91+(DJ92*DM83))+DJ85 -> 583.33
A85: =B85+(C85*D85)+(E85*F85) ->  | B85: =Sistema_Gráficas!#REF! ->  | C85: =Sistema_Gráficas!#REF! ->  | D85: =B53 -> 583.33 | E85: =Sistema_Gráficas!#REF! ->  | F85: =(B85-B73+(C85*D85))/(E85*-1) ->  | BA85: I1 | BB85: =$BB$76+($BB$77*$BB$78)+($BB$79*$BB$80) -> 100.00 | BC85: =$BC$76+($BC$77*$BC$78)+($BC$79*$BC$80) -> 100.00 | CL85: G | CM85: =A69 -> 100.00 | DI85: G | DJ85: =H77 -> 100.00
CE87: Resultados | CF87: INICIAL | CL87: EXPORTACIONES | DI87: EXPORTACIONES
CE88: Md | CF88: =CF76+(CF77*CF78)+(CF79*CF89) ->  | CL88: X | CM88: =D77 -> 200.00 | DI88: X | DJ88: =K77 -> 200.00
CE89: r | CF89: =(CF82-CF76-(CF77*CF78))/CF79 -> 
CL90: IMPORTACIONES | DI90: IMPORTACIONES
CE91: m0 | CF91: =B81 -> 30.00 | CL91: m0 | CM91: =B81 -> 30.00 | DI91: m0 | DJ91: =I81 -> 30.00
CE92: m1 | CF92: =C81 -> 0.40 | CL92: m1 | CM92: =C81 -> 0.40 | DI92: m1 | DJ92: =J81 -> 0.40
